Publisher Label,Publisher URI,"Supplier ID","Supplier","Invoice No.","Amount (£)","Purpose","Transaction Number","Payment Date","Organisational Unit","Cost Centre(T)","Internal Category Number"
"Wolverhampton City Council","http://opendatacommunities.org/id/metropolitan-district-council/wolverhampton","705542","Midwest Electrical Services Limited","I13419","21.43","R&M - Departmental planned (external)","130186875","15/09/2017","Maintenance Programme","Centralised R&M","R2001"
"Wolverhampton City Council","http://opendatacommunities.org/id/metropolitan-district-council/wolverhampton","705542","Midwest Electrical Services Limited","I13423","60.28","R&M - Departmental planned (external)","130186879","15/09/2017","Maintenance Programme","Centralised R&M","R2001"
"Wolverhampton City Council","http://opendatacommunities.org/id/metropolitan-district-council/wolverhampton","705542","Midwest Electrical Services Limited","I13432","373.08","R&M - Departmental planned (external)","130186885","15/09/2017","Maintenance Programme","Centralised R&M","R2001"
"Wolverhampton City Council","http://opendatacommunities.org/id/metropolitan-district-council/wolverhampton","705542","Midwest Electrical Services Limited","I13428","204.26","R&M - Departmental planned (external)","130186882","15/09/2017","Maintenance Programme","Centralised R&M","R2001"
"Wolverhampton City Council","http://opendatacommunities.org/id/metropolitan-district-council/wolverhampton","705548","Mike Tivey","SFH1/8/2017","300.00","Services - Professional Fees","130187835","27/09/2017","Early Intervention","EIP Locality 1 - Eastfields","R4400"
"Wolverhampton City Council","http://opendatacommunities.org/id/metropolitan-district-council/wolverhampton","705548","Mike Tivey","SFH7/08/17","380.00","Services - Professional Fees","130187837","27/09/2017","Early Intervention","EIP Locality 7 � Low Hill","R4400"
"Wolverhampton City Council","http://opendatacommunities.org/id/metropolitan-district-council/wolverhampton","705548","Mike Tivey","SFH2/008/17","160.00","Services - Professional Fees","130187836","27/09/2017","Early Intervention","EIP Locality 2 � Bilston/Rocket Pool","R4400"
"Wolverhampton City Council","http://opendatacommunities.org/id/metropolitan-district-council/wolverhampton","705548","Mike Tivey","SFH8/8/17","550.00","Services - Supplies and Services to service users","130187838","27/09/2017","Early Intervention","EIP Locality 8 � Children�s Village","R4408"
"Wolverhampton City Council","http://opendatacommunities.org/id/metropolitan-district-council/wolverhampton","705592","Mitchell Diesel Limited","125850","149.42","Equipment - Purchase","190372603","13/09/2017","Fleet Services","Fleet Management","R4000"
"Wolverhampton City Council","http://opendatacommunities.org/id/metropolitan-district-council/wolverhampton","705592","Mitchell Diesel Limited","126485","139.81","Equipment - Purchase","190378749","29/09/2017","Fleet Services","Fleet Management","R4000"
"Wolverhampton City Council","http://opendatacommunities.org/id/metropolitan-district-council/wolverhampton","705592","Mitchell Diesel Limited","126485","159.82","Equipment - Purchase","190378749","29/09/2017","Fleet Services","Fleet Management","R4000"
"Wolverhampton City Council","http://opendatacommunities.org/id/metropolitan-district-council/wolverhampton","705592","Mitchell Diesel Limited","126095","2.23","Equipment - Purchase","190372605","13/09/2017","Fleet Services","Fleet Management","R4000"
"Wolverhampton City Council","http://opendatacommunities.org/id/metropolitan-district-council/wolverhampton","705592","Mitchell Diesel Limited","126095","23.42","Equipment - Purchase","190372605","13/09/2017","Fleet Services","Fleet Management","R4000"
"Wolverhampton City Council","http://opendatacommunities.org/id/metropolitan-district-council/wolverhampton","705592","Mitchell Diesel Limited","126095","5.87","Equipment - Purchase","190372605","13/09/2017","Fleet Services","Fleet Management","R4000"
"Wolverhampton City Council","http://opendatacommunities.org/id/metropolitan-district-council/wolverhampton","705592","Mitchell Diesel Limited","124193","731.17","Equipment - Purchase","190370170","06/09/2017","Fleet Services","Fleet Management","R4000"
"Wolverhampton City Council","http://opendatacommunities.org/id/metropolitan-district-council/wolverhampton","705592","Mitchell Diesel Limited","125953","60.00","Equipment - Purchase","190372604","13/09/2017","Fleet Services","Fleet Management","R4000"
"Wolverhampton City Council","http://opendatacommunities.org/id/metropolitan-district-council/wolverhampton","705592","Mitchell Diesel Limited","125953","642.00","Equipment - Purchase","190372604","13/09/2017","Fleet Services","Fleet Management","R4000"
"Wolverhampton City Council","http://opendatacommunities.org/id/metropolitan-district-council/wolverhampton","705592","Mitchell Diesel Limited","124195","9.12","Equipment - Purchase","190370171","06/09/2017","Fleet Services","Fleet Management","R4000"
"Wolverhampton City Council","http://opendatacommunities.org/id/metropolitan-district-council/wolverhampton","705592","Mitchell Diesel Limited","124195","9.12","Equipment - Purchase","190370171","06/09/2017","Fleet Services","Fleet Management","R4000"
"Wolverhampton City Council","http://opendatacommunities.org/id/metropolitan-district-council/wolverhampton","705634","Morelock Signs Limited","0000198529","54.27","Construction and Conversion","130186853","06/09/2017","-","Safety Programme","C1100"
"Wolverhampton City Council","http://opendatacommunities.org/id/metropolitan-district-council/wolverhampton","705634","Morelock Signs Limited","0000198962","174.60","Materials","130186056","15/09/2017","Street Lighting","Signs Illuminated","R4007"
"Wolverhampton City Council","http://opendatacommunities.org/id/metropolitan-district-council/wolverhampton","705634","Morelock Signs Limited","0000197571","28.14","Services - Professional Fees","130181192","18/09/2017","Operation & Maintenance of Existing Network","Public Rights of Way (CROW Act 2000)","R4400"
"Wolverhampton City Council","http://opendatacommunities.org/id/metropolitan-district-council/wolverhampton","705634","Morelock Signs Limited","0000198527","85.84","Materials","130184345","06/09/2017","Street Lighting","Signs Illuminated","R4007"
"Wolverhampton City Council","http://opendatacommunities.org/id/metropolitan-district-council/wolverhampton","705634","Morelock Signs Limited","0000198961","2,305.83","Materials","130186055","15/09/2017","Street Lighting","Signs Illuminated","R4007"
"Wolverhampton City Council","http://opendatacommunities.org/id/metropolitan-district-council/wolverhampton","705634","Morelock Signs Limited","0420461256","-14.07","Services - Professional Fees","130187840","15/09/2017","Operation & Maintenance of Existing Network","Public Rights of Way (CROW Act 2000)","R4400"
"Wolverhampton City Council","http://opendatacommunities.org/id/metropolitan-district-council/wolverhampton","705634","Morelock Signs Limited","0000195604","478.98","Construction and Conversion","130181838","06/09/2017","-","GF - Managing Short Trips","C1100"
"Wolverhampton City Council","http://opendatacommunities.org/id/metropolitan-district-council/wolverhampton","705634","Morelock Signs Limited","0000198159","95.24","Construction and Conversion","130182751","06/09/2017","-","Safety Programme","C1100"
"Wolverhampton City Council","http://opendatacommunities.org/id/metropolitan-district-council/wolverhampton","705634","Morelock Signs Limited","0000198959","104.93","Materials","130186053","15/09/2017","Street Lighting","Signs Illuminated","R4007"
"Wolverhampton City Council","http://opendatacommunities.org/id/metropolitan-district-council/wolverhampton","705634","Morelock Signs Limited","0000198528","12.00","Materials","130184346","06/09/2017","Street Lighting","Signs Illuminated","R4007"
"Wolverhampton City Council","http://opendatacommunities.org/id/metropolitan-district-council/wolverhampton","705634","Morelock Signs Limited","0000198960","90.88","Materials","130186054","15/09/2017","Street Lighting","Signs Illuminated","R4007"
"Wolverhampton City Council","http://opendatacommunities.org/id/metropolitan-district-council/wolverhampton","705647","Mothercare UK Limited","SINVCO 10722","84.48","Equipment - Purchase","130186890","06/09/2017","Early Intervention","EIP Locality 4 - Bingley","R4000"
"Wolverhampton City Council","http://opendatacommunities.org/id/metropolitan-district-council/wolverhampton","705647","Mothercare UK Limited","SINVCO 10722","-84.48","Equipment - Purchase","130186890","06/09/2017","Early Intervention","EIP Locality 4 - Bingley","R4000"
"Wolverhampton City Council","http://opendatacommunities.org/id/metropolitan-district-council/wolverhampton","705647","Mothercare UK Limited","SINVCO 10722","72.50","Equipment - Purchase","130186890","06/09/2017","Early Intervention","EIP Locality 4 - Bingley","R4000"
"Wolverhampton City Council","http://opendatacommunities.org/id/metropolitan-district-council/wolverhampton","705647","Mothercare UK Limited","SINVCO 10722","11.98","Equipment - Purchase","130186890","06/09/2017","Early Intervention","EIP Locality 4 - Bingley","R4000"
"Wolverhampton City Council","http://opendatacommunities.org/id/metropolitan-district-council/wolverhampton","705653","Mott Macdonald Limited","IN00371894","9,920.00","Construction and Conversion","130183251","06/09/2017","-","Integrated Transport","C1100"
"Wolverhampton City Council","http://opendatacommunities.org/id/metropolitan-district-council/wolverhampton","705680","M-R-S Communications Limited","1170313","130.00","Services - Security","130187841","13/09/2017","Strategic Organisation Development","Global Budgets","R4405"
"Wolverhampton City Council","http://opendatacommunities.org/id/metropolitan-district-council/wolverhampton","705680","M-R-S Communications Limited","1170052","130.00","Equipment - Hire","130188824","22/09/2017","Visitor Economy","The Little Civic","R4001"
"Wolverhampton City Council","http://opendatacommunities.org/id/metropolitan-district-council/wolverhampton","705680","M-R-S Communications Limited","1170017","195.00","Comms - Radios","130187262","13/09/2017","Cleaning","Public Conveniences","R4508"
"Wolverhampton City Council","http://opendatacommunities.org/id/metropolitan-district-council/wolverhampton","705680","M-R-S Communications Limited","1169999","130.00","Comms - Radios","130187261","13/09/2017","Parking Services","Shopmobility","R4508"
"Wolverhampton City Council","http://opendatacommunities.org/id/metropolitan-district-council/wolverhampton","705680","M-R-S Communications Limited","1166869","130.00","Comms - Radios","130188272","20/09/2017","Facilities Management","Civic Centre","R4508"
"Wolverhampton City Council","http://opendatacommunities.org/id/metropolitan-district-council/wolverhampton","705680","M-R-S Communications Limited","1170449","130.00","Comms - Radios","130187265","13/09/2017","Licensing","Licensing - H.Carriage/Pr.Hire Vehicles","R4508"
"Wolverhampton City Council","http://opendatacommunities.org/id/metropolitan-district-council/wolverhampton","705680","M-R-S Communications Limited","1170001","130.00","Equipment - R & M","130188823","22/09/2017","Operation & Maintenance of Existing Network","UTC Wolverhampton","R4003"
"Wolverhampton City Council","http://opendatacommunities.org/id/metropolitan-district-council/wolverhampton","705680","M-R-S Communications Limited","1170448","130.00","Comms - Radios","130187264","13/09/2017","Licensing","Licensing - H.Carriage/Pr.Hire Vehicles","R4508"
"Wolverhampton City Council","http://opendatacommunities.org/id/metropolitan-district-council/wolverhampton","705691","Multifloor (Walsall) Limited","54375","495.00","Equipment - Purchase","130188825","27/09/2017","Older People Provider Services","Older People Provider Management","R4000"
"Wolverhampton City Council","http://opendatacommunities.org/id/metropolitan-district-council/wolverhampton","705702","Murrays Healthcare","117894","60.00","TPP - Social Care Support Services","130167280","15/09/2017","Adults Assessment & Care Management West","Older People Assessment & Care Management","R5501"
"Wolverhampton City Council","http://opendatacommunities.org/id/metropolitan-district-council/wolverhampton","705748","Nacro","SIO/008040","365,002.75","TPP - Public Health Contracts","130184161","01/09/2017","Contracts","Alcohol and Drug","R5060"
"Wolverhampton City Council","http://opendatacommunities.org/id/metropolitan-district-council/wolverhampton","705748","Nacro","SIO/008065","6,248.92","TPP - Other","130185864","15/09/2017","Early Intervention","Vulnerable Women","R5010"
"Wolverhampton City Council","http://opendatacommunities.org/id/metropolitan-district-council/wolverhampton","705751","Nalco Limited","9400462390","412.50","R&M - Departmental planned (external)","130185438","06/09/2017","Maintenance Programme","Civic Centre Repairs & Maintenance","R2001"
"Wolverhampton City Council","http://opendatacommunities.org/id/metropolitan-district-council/wolverhampton","705751","Nalco Limited","9400462863","262.00","R&M - Departmental planned (external)","130186335","13/09/2017","Maintenance Programme","Civic Centre Repairs & Maintenance","R2001"
"Wolverhampton City Council","http://opendatacommunities.org/id/metropolitan-district-council/wolverhampton","705769","Nat Soc Allotments Leis Gardenersltd","S9732 17/18","55.00","Subscriptions","130188501","20/09/2017","Environmental Maintenance","Allotments","R4701"
"Wolverhampton City Council","http://opendatacommunities.org/id/metropolitan-district-council/wolverhampton","705775","National Assoc Of Head Teachers","LIT0201702015 CR","-150.00","Training Expenses","130189336","22/09/2017","Schools","Rakegate Primary School","R1650"
"Wolverhampton City Council","http://opendatacommunities.org/id/metropolitan-district-council/wolverhampton","705806","Natural History Lecture Service","19046","650.00","Services - Professional Fees","130187843","20/09/2017","Visitor Economy","Art Galleries - Schools Art SLA Service","R4400"
"Wolverhampton City Council","http://opendatacommunities.org/id/metropolitan-district-council/wolverhampton","705807","Natural Resources Wales","3016887","2,052.00","Water Charges","130186910","06/09/2017","School Planning & Resources","Towers Outdoor Education Centre","R2400"
"Wolverhampton City Council","http://opendatacommunities.org/id/metropolitan-district-council/wolverhampton","705829","Neopost Limited (Credifon)",""FRANKING CREDITS ""58"""","5,000.00","Inventories","190372806","13/09/2017","-","General Fund Balance Sheet","B3000"
"Wolverhampton City Council","http://opendatacommunities.org/id/metropolitan-district-council/wolverhampton","705829","Neopost Limited (Credifon)",""FRANKING CREDITS ""57"""","5,000.00","Inventories","190372805","13/09/2017","-","General Fund Balance Sheet","B3000"
"Wolverhampton City Council","http://opendatacommunities.org/id/metropolitan-district-council/wolverhampton","705830","Neopost Limited","92354109","130.82","Equipment - R & M","130181515","18/09/2017","ICTS","Document Centre - General","R4003"
"Wolverhampton City Council","http://opendatacommunities.org/id/metropolitan-district-council/wolverhampton","705830","Neopost Limited","2017062305","497.02","Equipment - R & M","130190119","29/09/2017","Revenues & Benefits","Revenues","R4003"
"Wolverhampton City Council","http://opendatacommunities.org/id/metropolitan-district-council/wolverhampton","705849","New Park Village Activities Network","002","4,966.25","TPP - Payments to voluntary groups","130184349","01/09/2017","Headstart","Headstart - Commissioned Activity","R5200"
"Wolverhampton City Council","http://opendatacommunities.org/id/metropolitan-district-council/wolverhampton","705854","Newauto Limited T/A Mogo (UK)","T27503","4,470.00","Signage and Labels","130185646","13/09/2017","Licensing","Licensing - Private Hire Vehicles","R4009"
"Wolverhampton City Council","http://opendatacommunities.org/id/metropolitan-district-council/wolverhampton","705854","Newauto Limited T/A Mogo (UK)","T27503","19.90","Signage and Labels","130185646","13/09/2017","Licensing","Licensing - Private Hire Vehicles","R4009"
"Wolverhampton City Council","http://opendatacommunities.org/id/metropolitan-district-council/wolverhampton","705854","Newauto Limited T/A Mogo (UK)","T27512","440.00","Signage and Labels","130186766","20/09/2017","Licensing","Licensing - Private Hire Vehicles","R4009"
"Wolverhampton City Council","http://opendatacommunities.org/id/metropolitan-district-council/wolverhampton","705854","Newauto Limited T/A Mogo (UK)","T27512","14.90","Signage and Labels","130186766","20/09/2017","Licensing","Licensing - Private Hire Vehicles","R4009"
"Wolverhampton City Council","http://opendatacommunities.org/id/metropolitan-district-council/wolverhampton","705854","Newauto Limited T/A Mogo (UK)","T27281","735.00","Signage and Labels","130186820","06/09/2017","Licensing","Licensing - H.Carriage/Pr.Hire Vehicles","R4009"
"Wolverhampton City Council","http://opendatacommunities.org/id/metropolitan-district-council/wolverhampton","705854","Newauto Limited T/A Mogo (UK)","T27281","14.90","Signage and Labels","130186820","06/09/2017","Licensing","Licensing - H.Carriage/Pr.Hire Vehicles","R4009"
"Wolverhampton City Council","http://opendatacommunities.org/id/metropolitan-district-council/wolverhampton","705855","Newbridge Preparatory School","NEF Autumn 2017 INST 1","23,026.50","TPP - Private Nursery Education Funding","190378725","29/09/2017","Early Years","Early Years Universal Entitlement for 3 and 4 Year Olds","R5035"
"Wolverhampton City Council","http://opendatacommunities.org/id/metropolitan-district-council/wolverhampton","705899","Nikki Downes","NEF Autumn 2017 INST 1","2,677.50","TPP - Private Nursery Education Funding","190378725","29/09/2017","Early Years","Early Years Universal Entitlement for 3 and 4 Year Olds","R5035"
"Wolverhampton City Council","http://opendatacommunities.org/id/metropolitan-district-council/wolverhampton","705904","Nisbets PLC","15072680","69.30","Materials","130181516","08/09/2017","Learning Disability Provider","Duke Street Bungalows","R4007"
"Wolverhampton City Council","http://opendatacommunities.org/id/metropolitan-district-council/wolverhampton","705904","Nisbets PLC","14695103","15.29","Cleaning Supplies and Materials","130188981","20/09/2017","Learning Disability Provider","Duke Street Bungalows","R2705"
"Wolverhampton City Council","http://opendatacommunities.org/id/metropolitan-district-council/wolverhampton","705904","Nisbets PLC","14695103","5.00","Cleaning Supplies and Materials","130188981","20/09/2017","Learning Disability Provider","Duke Street Bungalows","R2705"
"Wolverhampton City Council","http://opendatacommunities.org/id/metropolitan-district-council/wolverhampton","705904","Nisbets PLC","15318113","209.97","Furniture","130187519","27/09/2017","Corporate Asset Management","Future Space Decant Area","R4004"
"Wolverhampton City Council","http://opendatacommunities.org/id/metropolitan-district-council/wolverhampton","705904","Nisbets PLC","15194966","52.61","Equipment - Purchase","130186856","06/09/2017","Older People Provider Services","Bradley Lodge Resource Centre","R4000"
"Wolverhampton City Council","http://opendatacommunities.org/id/metropolitan-district-council/wolverhampton","705907","NJB Physiotherapy Limited","56868","85.00","Services - Professional Fees","130187077","15/09/2017","Human Resources","HR Advice","R4400"
"Wolverhampton City Council","http://opendatacommunities.org/id/metropolitan-district-council/wolverhampton","705907","NJB Physiotherapy Limited","57047","85.00","Services - Professional Fees","130187081","15/09/2017","Human Resources","HR Advice","R4400"
"Wolverhampton City Council","http://opendatacommunities.org/id/metropolitan-district-council/wolverhampton","705907","NJB Physiotherapy Limited","57124","168.00","Services - Professional Fees","130187084","15/09/2017","Human Resources","HR Advice","R4400"
"Wolverhampton City Council","http://opendatacommunities.org/id/metropolitan-district-council/wolverhampton","705907","NJB Physiotherapy Limited","57121","85.00","Services - Professional Fees","130188506","22/09/2017","Human Resources","HR Advice","R4400"
"Wolverhampton City Council","http://opendatacommunities.org/id/metropolitan-district-council/wolverhampton","705907","NJB Physiotherapy Limited","57172","252.00","Services - Professional Fees","130188513","22/09/2017","Human Resources","HR Advice","R4400"
"Wolverhampton City Council","http://opendatacommunities.org/id/metropolitan-district-council/wolverhampton","705907","NJB Physiotherapy Limited","57197","210.00","Services - Professional Fees","130188517","22/09/2017","Human Resources","HR Advice","R4400"
"Wolverhampton City Council","http://opendatacommunities.org/id/metropolitan-district-council/wolverhampton","705907","NJB Physiotherapy Limited","57199","11.00","Services - Professional Fees","130188518","22/09/2017","Human Resources","HR Advice","R4400"
"Wolverhampton City Council","http://opendatacommunities.org/id/metropolitan-district-council/wolverhampton","705907","NJB Physiotherapy Limited","57048","85.00","Services - Professional Fees","130187082","15/09/2017","Human Resources","HR Advice","R4400"
"Wolverhampton City Council","http://opendatacommunities.org/id/metropolitan-district-council/wolverhampton","705907","NJB Physiotherapy Limited","56865","85.00","Services - Professional Fees","130187074","15/09/2017","Human Resources","HR Advice","R4400"
"Wolverhampton City Council","http://opendatacommunities.org/id/metropolitan-district-council/wolverhampton","705907","NJB Physiotherapy Limited","57106","11.00","Services - Professional Fees","130187083","15/09/2017","Human Resources","HR Advice","R4400"
"Wolverhampton City Council","http://opendatacommunities.org/id/metropolitan-district-council/wolverhampton","705907","NJB Physiotherapy Limited","57103","168.00","Services - Professional Fees","130188503","20/09/2017","Human Resources","HR Advice","R4400"
"Wolverhampton City Council","http://opendatacommunities.org/id/metropolitan-district-council/wolverhampton","705907","NJB Physiotherapy Limited","56830","85.00","Services - Professional Fees","130187073","13/09/2017","Human Resources","HR Advice","R4400"
"Wolverhampton City Council","http://opendatacommunities.org/id/metropolitan-district-council/wolverhampton","705907","NJB Physiotherapy Limited","57148","126.00","Services - Professional Fees","130188512","22/09/2017","Human Resources","HR Advice","R4400"
"Wolverhampton City Council","http://opendatacommunities.org/id/metropolitan-district-council/wolverhampton","705907","NJB Physiotherapy Limited","57105","210.00","Services - Professional Fees","130188505","22/09/2017","Human Resources","HR Advice","R4400"
"Wolverhampton City Council","http://opendatacommunities.org/id/metropolitan-district-council/wolverhampton","705907","NJB Physiotherapy Limited","57104","168.00","Services - Professional Fees","130188504","22/09/2017","Human Resources","HR Advice","R4400"
"Wolverhampton City Council","http://opendatacommunities.org/id/metropolitan-district-council/wolverhampton","705907","NJB Physiotherapy Limited","57122","85.00","Services - Professional Fees","130188507","22/09/2017","Human Resources","HR Advice","R4400"
"Wolverhampton City Council","http://opendatacommunities.org/id/metropolitan-district-council/wolverhampton","705907","NJB Physiotherapy Limited","57146","210.00","Services - Professional Fees","130188511","22/09/2017","Human Resources","HR Advice","R4400"
"Wolverhampton City Council","http://opendatacommunities.org/id/metropolitan-district-council/wolverhampton","705907","NJB Physiotherapy Limited","57194","11.00","Services - Professional Fees","130188514","22/09/2017","Human Resources","HR Advice","R4400"
"Wolverhampton City Council","http://opendatacommunities.org/id/metropolitan-district-council/wolverhampton","705907","NJB Physiotherapy Limited","57196","105.00","Services - Professional Fees","130188516","22/09/2017","Human Resources","HR Advice","R4400"
"Wolverhampton City Council","http://opendatacommunities.org/id/metropolitan-district-council/wolverhampton","705907","NJB Physiotherapy Limited","56867","85.00","Services - Professional Fees","130187076","15/09/2017","Human Resources","HR Advice","R4400"
"Wolverhampton City Council","http://opendatacommunities.org/id/metropolitan-district-council/wolverhampton","705907","NJB Physiotherapy Limited","57033","85.00","Services - Professional Fees","130187080","15/09/2017","Human Resources","HR Advice","R4400"
"Wolverhampton City Council","http://opendatacommunities.org/id/metropolitan-district-council/wolverhampton","705907","NJB Physiotherapy Limited","56894","126.00","Services - Professional Fees","130187079","15/09/2017","Human Resources","HR Advice","R4400"
"Wolverhampton City Council","http://opendatacommunities.org/id/metropolitan-district-council/wolverhampton","705907","NJB Physiotherapy Limited","56866","85.00","Services - Professional Fees","130187075","15/09/2017","Human Resources","HR Advice","R4400"
"Wolverhampton City Council","http://opendatacommunities.org/id/metropolitan-district-council/wolverhampton","705907","NJB Physiotherapy Limited","56886","85.00","Services - Professional Fees","130187078","15/09/2017","Human Resources","HR Advice","R4400"
"Wolverhampton City Council","http://opendatacommunities.org/id/metropolitan-district-council/wolverhampton","705907","NJB Physiotherapy Limited","57123","85.00","Services - Professional Fees","130188508","15/09/2017","Human Resources","HR Advice","R4400"
"Wolverhampton City Council","http://opendatacommunities.org/id/metropolitan-district-council/wolverhampton","705907","NJB Physiotherapy Limited","57142","168.00","Services - Professional Fees","130188509","22/09/2017","Human Resources","HR Advice","R4400"
"Wolverhampton City Council","http://opendatacommunities.org/id/metropolitan-district-council/wolverhampton","705907","NJB Physiotherapy Limited","57195","63.00","Services - Professional Fees","130188515","22/09/2017","Human Resources","HR Advice","R4400"
"Wolverhampton City Council","http://opendatacommunities.org/id/metropolitan-district-council/wolverhampton","705907","NJB Physiotherapy Limited","57143","210.00","Services - Professional Fees","130188510","22/09/2017","Human Resources","HR Advice","R4400"
"Wolverhampton City Council","http://opendatacommunities.org/id/metropolitan-district-council/wolverhampton","705913","No 5 Chambers Limited","8208","3,866.67","Services - Professional Fees","130188826","20/09/2017","Public Protection","EHTS Operational Costs","R4400"
"Wolverhampton City Council","http://opendatacommunities.org/id/metropolitan-district-council/wolverhampton","705913","No 5 Chambers Limited","2610","640.62","Services - Professional Fees","130186193","13/09/2017","Licensing","Licensing - Private Hire Vehicles","R4400"
"Wolverhampton City Council","http://opendatacommunities.org/id/metropolitan-district-council/wolverhampton","705913","No 5 Chambers Limited","3402","500.00","Services - Professional Fees","130188132","18/09/2017","Legal Services","Centralised External Legal Costs","R4400"
"Wolverhampton City Council","http://opendatacommunities.org/id/metropolitan-district-council/wolverhampton","705914","Two by Two�s Day Nursery T/A Noah�s Ark","TFT Autumn 2017 Inst 1","15,845.76","Grant Payments","190378735","29/09/2017","Early Years","Early Years Entitlement Funding for Disadvantaged 2 Year Olds","R4700"
"Wolverhampton City Council","http://opendatacommunities.org/id/metropolitan-district-council/wolverhampton","705914","Two by Two�s Day Nursery T/A Noah�s Ark","NEF Autumn 2017 INST 1","13,636.80","TPP - Private Nursery Education Funding","190378725","29/09/2017","Early Years","Early Years Universal Entitlement for 3 and 4 Year Olds","R5035"
"Wolverhampton City Council","http://opendatacommunities.org/id/metropolitan-district-council/wolverhampton","705915","Noah�s Ark Environmental Services Ltd","WV1708","1,311.00","Services - Professional Fees","130188133","15/09/2017","Public Protection","Pest Control & Animal Welfare","R4400"
"Wolverhampton City Council","http://opendatacommunities.org/id/metropolitan-district-council/wolverhampton","705916","Nobisco Limited","500733","183.00","Protective Clothing","130189399","29/09/2017","Older People Provider Services","Bradley Lodge Resource Centre","R4200"
"Wolverhampton City Council","http://opendatacommunities.org/id/metropolitan-district-council/wolverhampton","705916","Nobisco Limited","500730","35.52","Cleaning Supplies and Materials","130189396","29/09/2017","Learning Disability Provider","Ernest Bold Court","R2705"
"Wolverhampton City Council","http://opendatacommunities.org/id/metropolitan-district-council/wolverhampton","705916","Nobisco Limited","496867","1.73","Cleaning Supplies and Materials","130186911","06/09/2017","Markets","Bilston Market and Licensed Operations","R2705"
"Wolverhampton City Council","http://opendatacommunities.org/id/metropolitan-district-council/wolverhampton","705916","Nobisco Limited","498421","256.20","Protective Clothing","130187522","15/09/2017","Older People Provider Services","Reablement Team","R4200"
"Wolverhampton City Council","http://opendatacommunities.org/id/metropolitan-district-council/wolverhampton","705916","Nobisco Limited","498421","-256.20","Protective Clothing","130187522","15/09/2017","Older People Provider Services","Reablement Team","R4200"
"Wolverhampton City Council","http://opendatacommunities.org/id/metropolitan-district-council/wolverhampton","705916","Nobisco Limited","498421","256.20","Protective Clothing","130187522","15/09/2017","Older People Provider Services","Reablement Team","R4200"
"Wolverhampton City Council","http://opendatacommunities.org/id/metropolitan-district-council/wolverhampton","705916","Nobisco Limited","499605","219.60","Protective Clothing","130188658","22/09/2017","Older People Provider Services","Bradley Lodge Resource Centre","R4200"
"Wolverhampton City Council","http://opendatacommunities.org/id/metropolitan-district-council/wolverhampton","705916","Nobisco Limited","499603","48.19","Cleaning Supplies and Materials","130188656","22/09/2017","Learning Disability Provider","Ernest Bold Court","R2705"
"Wolverhampton City Council","http://opendatacommunities.org/id/metropolitan-district-council/wolverhampton","705916","Nobisco Limited","498762","38.91","Cleaning Supplies and Materials","130187846","20/09/2017","Visitor Economy","Art Gallery Tea Room","R2705"
"Wolverhampton City Council","http://opendatacommunities.org/id/metropolitan-district-council/wolverhampton","705916","Nobisco Limited","498940","1,641.62","Cleaning Supplies and Materials","130188135","20/09/2017","Cleaning","Cleaning of Buildings - General","R2705"
"Wolverhampton City Council","http://opendatacommunities.org/id/metropolitan-district-council/wolverhampton","705916","Nobisco Limited","499602","6.56","Cleaning Supplies and Materials","130188655","22/09/2017","Leisure Services","Central Baths","R2705"
"Wolverhampton City Council","http://opendatacommunities.org/id/metropolitan-district-council/wolverhampton","705916","Nobisco Limited","500094","539.16","Cleaning Supplies and Materials","130188984","27/09/2017","Cleaning","Cleaning of Buildings - General","R2705"
"Wolverhampton City Council","http://opendatacommunities.org/id/metropolitan-district-council/wolverhampton","705916","Nobisco Limited","500094","0.03","Cleaning Supplies and Materials","130188984","27/09/2017","Cleaning","Cleaning of Buildings - General","R2705"
"Wolverhampton City Council","http://opendatacommunities.org/id/metropolitan-district-council/wolverhampton","705916","Nobisco Limited","500094","0.01","Cleaning Supplies and Materials","130188984","27/09/2017","Cleaning","Cleaning of Buildings - General","R2705"
"Wolverhampton City Council","http://opendatacommunities.org/id/metropolitan-district-council/wolverhampton","705916","Nobisco Limited","496870","13.20","Cleaning Supplies and Materials","130186198","08/09/2017","Visitor Economy","Art Gallery Tea Room","R2705"
"Wolverhampton City Council","http://opendatacommunities.org/id/metropolitan-district-council/wolverhampton","705916","Nobisco Limited","496869","38.99","Cleaning Supplies and Materials","130186197","08/09/2017","Older People Provider Services","Bradley Lodge Resource Centre","R2705"
"Wolverhampton City Council","http://opendatacommunities.org/id/metropolitan-district-council/wolverhampton","705916","Nobisco Limited","499162","8.28","Cleaning Supplies and Materials","130188337","20/09/2017","Leisure Services","Central Baths","R2705"
"Wolverhampton City Council","http://opendatacommunities.org/id/metropolitan-district-council/wolverhampton","705916","Nobisco Limited","498161","275.38","Cleaning Supplies and Materials","130187266","13/09/2017","Learning Disability Provider","Duke Street Bungalows","R2705"
"Wolverhampton City Council","http://opendatacommunities.org/id/metropolitan-district-council/wolverhampton","705916","Nobisco Limited","490068","176.21","Cleaning Supplies and Materials","130177863","01/09/2017","Catering","Education Catering - General Overheads","R2705"
"Wolverhampton City Council","http://opendatacommunities.org/id/metropolitan-district-council/wolverhampton","705916","Nobisco Limited","497567","75.64","Cleaning Supplies and Materials","130186770","13/09/2017","Learning Disability Provider","Ernest Bold Court","R2705"
"Wolverhampton City Council","http://opendatacommunities.org/id/metropolitan-district-council/wolverhampton","705916","Nobisco Limited","496761","3,101.18","Cleaning Supplies and Materials","130186059","01/09/2017","Catering","Education Catering - General Overheads","R2705"
"Wolverhampton City Council","http://opendatacommunities.org/id/metropolitan-district-council/wolverhampton","705916","Nobisco Limited","500507","29.20","Cleaning Supplies and Materials","130189253","29/09/2017","Visitor Economy","Art Gallery Tea Room","R2705"
"Wolverhampton City Council","http://opendatacommunities.org/id/metropolitan-district-council/wolverhampton","705916","Nobisco Limited","496991","2,376.66","Cleaning Supplies and Materials","130186336","06/09/2017","Catering","School Milk","R2705"
"Wolverhampton City Council","http://opendatacommunities.org/id/metropolitan-district-council/wolverhampton","705916","Nobisco Limited","495893","120.41","Cleaning Supplies and Materials","130184898","06/09/2017","Leisure Services","Central Baths","R2705"
"Wolverhampton City Council","http://opendatacommunities.org/id/metropolitan-district-council/wolverhampton","705916","Nobisco Limited","489877","363.21","Cleaning Supplies and Materials","130177328","15/09/2017","Catering","Education Catering - General Overheads","R2705"
"Wolverhampton City Council","http://opendatacommunities.org/id/metropolitan-district-council/wolverhampton","705916","Nobisco Limited","498420","91.97","Cleaning Supplies and Materials","130187521","15/09/2017","Visitor Economy","Bantock - Tea Rooms","R2705"
"Wolverhampton City Council","http://opendatacommunities.org/id/metropolitan-district-council/wolverhampton","705916","Nobisco Limited","499606","183.00","Protective Clothing","130188659","22/09/2017","Older People Provider Services","Bradley Lodge Resource Centre","R4200"
"Wolverhampton City Council","http://opendatacommunities.org/id/metropolitan-district-council/wolverhampton","705916","Nobisco Limited","499386","30.50","Cleaning Supplies and Materials","130188519","22/09/2017","Catering","Education Catering - General Overheads","R2705"
"Wolverhampton City Council","http://opendatacommunities.org/id/metropolitan-district-council/wolverhampton","705916","Nobisco Limited","499388","328.25","Cleaning Supplies and Materials","130188521","20/09/2017","Catering","Education Catering - General Overheads","R2705"
"Wolverhampton City Council","http://opendatacommunities.org/id/metropolitan-district-council/wolverhampton","705916","Nobisco Limited","498760","18.00","Cleaning Supplies and Materials","130187844","20/09/2017","Leisure Services","Central Baths","R2705"
"Wolverhampton City Council","http://opendatacommunities.org/id/metropolitan-district-council/wolverhampton","705916","Nobisco Limited","498760","25.40","Cleaning Supplies and Materials","130187844","20/09/2017","Leisure Services","Central Baths","R2705"
"Wolverhampton City Council","http://opendatacommunities.org/id/metropolitan-district-council/wolverhampton","705916","Nobisco Limited","498760","6.94","Cleaning Supplies and Materials","130187844","20/09/2017","Leisure Services","Central Baths","R2705"
"Wolverhampton City Council","http://opendatacommunities.org/id/metropolitan-district-council/wolverhampton","705916","Nobisco Limited","499164","44.52","Cleaning Supplies and Materials","130188339","20/09/2017","Visitor Economy","Bantock - Tea Rooms","R2705"
"Wolverhampton City Council","http://opendatacommunities.org/id/metropolitan-district-council/wolverhampton","705916","Nobisco Limited","496866","15.90","Cleaning Supplies and Materials","130186194","01/09/2017","Cleaning","Cleaning of Buildings - General","R2705"
"Wolverhampton City Council","http://opendatacommunities.org/id/metropolitan-district-council/wolverhampton","705916","Nobisco Limited","496995","27.68","Cleaning Supplies and Materials","130186340","08/09/2017","Visitor Economy","Art Gallery Tea Room","R2705"
"Wolverhampton City Council","http://opendatacommunities.org/id/metropolitan-district-council/wolverhampton","705916","Nobisco Limited","497564","23.07","Cleaning Supplies and Materials","130186767","13/09/2017","Catering","Education Catering - General Overheads","R2705"
"Wolverhampton City Council","http://opendatacommunities.org/id/metropolitan-district-council/wolverhampton","705916","Nobisco Limited","497564","52.51","Cleaning Supplies and Materials","130186767","13/09/2017","Catering","Education Catering - General Overheads","R2705"
"Wolverhampton City Council","http://opendatacommunities.org/id/metropolitan-district-council/wolverhampton","705916","Nobisco Limited","496502","68.28","Cleaning Supplies and Materials","130185648","01/09/2017","Catering","Education Catering - General Overheads","R2705"
"Wolverhampton City Council","http://opendatacommunities.org/id/metropolitan-district-council/wolverhampton","705916","Nobisco Limited","497737","12.96","Cleaning Supplies and Materials","130187085","13/09/2017","Early Intervention","EIP Locality 2 � Bilston/Rocket Pool","R2705"
"Wolverhampton City Council","http://opendatacommunities.org/id/metropolitan-district-council/wolverhampton","705916","Nobisco Limited","497923","21.00","Cleaning Supplies and Materials","130187163","13/09/2017","Independent Living Service","Independent Living Service","R2705"
"Wolverhampton City Council","http://opendatacommunities.org/id/metropolitan-district-council/wolverhampton","705916","Nobisco Limited","7392","-46.25","Cleaning Supplies and Materials","130167429","01/09/2017","Cleaning","Cleaning of Buildings - General","R2705"
"Wolverhampton City Council","http://opendatacommunities.org/id/metropolitan-district-council/wolverhampton","705916","Nobisco Limited","500093","12.35","Cleaning Supplies and Materials","130188983","27/09/2017","Markets","Bilston Market and Licensed Operations","R2705"
"Wolverhampton City Council","http://opendatacommunities.org/id/metropolitan-district-council/wolverhampton","705916","Nobisco Limited","499895","161.20","Cleaning Supplies and Materials","130188827","27/09/2017","Learning Disability Provider","Duke Street Bungalows","R2705"
"Wolverhampton City Council","http://opendatacommunities.org/id/metropolitan-district-council/wolverhampton","705916","Nobisco Limited","496993","230.64","Cleaning Supplies and Materials","130186338","13/09/2017","Leisure Services","Bert Williams Leisure Centre","R2705"
"Wolverhampton City Council","http://opendatacommunities.org/id/metropolitan-district-council/wolverhampton","705916","Nobisco Limited","496993","-230.64","Cleaning Supplies and Materials","130186338","13/09/2017","Leisure Services","Bert Williams Leisure Centre","R2705"
"Wolverhampton City Council","http://opendatacommunities.org/id/metropolitan-district-council/wolverhampton","705916","Nobisco Limited","496993","230.50","Cleaning Supplies and Materials","130186338","13/09/2017","Leisure Services","Bert Williams Leisure Centre","R2705"
"Wolverhampton City Council","http://opendatacommunities.org/id/metropolitan-district-council/wolverhampton","705916","Nobisco Limited","490238","95.37","Cleaning Supplies and Materials","130177865","01/09/2017","Catering","Education Catering - General Overheads","R2705"
"Wolverhampton City Council","http://opendatacommunities.org/id/metropolitan-district-council/wolverhampton","705916","Nobisco Limited","484092","17.00","Cleaning Supplies and Materials","130172051","01/09/2017","Catering","Education Catering - General Overheads","R2705"
"Wolverhampton City Council","http://opendatacommunities.org/id/metropolitan-district-council/wolverhampton","705916","Nobisco Limited","496868","725.92","Cleaning Supplies and Materials","130186196","01/09/2017","Cleaning","Cleaning of Buildings - General","R2705"
"Wolverhampton City Council","http://opendatacommunities.org/id/metropolitan-district-council/wolverhampton","705916","Nobisco Limited","497568","89.94","Cleaning Supplies and Materials","130186771","13/09/2017","Visitor Economy","Bantock - Tea Rooms","R2705"
"Wolverhampton City Council","http://opendatacommunities.org/id/metropolitan-district-council/wolverhampton","705916","Nobisco Limited","496762","3,213.23","Cleaning Supplies and Materials","130186060","08/09/2017","Cleaning","Cleaning of Buildings - General","R2705"
"Wolverhampton City Council","http://opendatacommunities.org/id/metropolitan-district-council/wolverhampton","705916","Nobisco Limited","497093","202.07","Cleaning Supplies and Materials","130186490","22/09/2017","Catering","Education Catering - General Overheads","R2705"
"Wolverhampton City Council","http://opendatacommunities.org/id/metropolitan-district-council/wolverhampton","705916","Nobisco Limited","497569","2.75","Cleaning Supplies and Materials","130186772","22/09/2017","Older People Provider Services","Bradley Lodge Resource Centre","R2705"
"Wolverhampton City Council","http://opendatacommunities.org/id/metropolitan-district-council/wolverhampton","705916","Nobisco Limited","499600","89.95","Cleaning Supplies and Materials","130188653","22/09/2017","Cleaning","Cleaning of Buildings - General","R2705"
"Wolverhampton City Council","http://opendatacommunities.org/id/metropolitan-district-council/wolverhampton","705916","Nobisco Limited","498939","632.58","Cleaning Supplies and Materials","130188134","20/09/2017","Catering","Education Catering - General Overheads","R2705"
"Wolverhampton City Council","http://opendatacommunities.org/id/metropolitan-district-council/wolverhampton","705916","Nobisco Limited","497094","117.05","Cleaning Supplies and Materials","130186491","20/09/2017","Leisure Services","Bert Williams Leisure Centre Caf�","R2705"
"Wolverhampton City Council","http://opendatacommunities.org/id/metropolitan-district-council/wolverhampton","705916","Nobisco Limited","499898","18.50","Cleaning Supplies and Materials","130188829","27/09/2017","Visitor Economy","Bantock - Tea Rooms","R2705"
"Wolverhampton City Council","http://opendatacommunities.org/id/metropolitan-district-council/wolverhampton","705916","Nobisco Limited","500732","98.41","Cleaning Supplies and Materials","130189398","29/09/2017","Learning Disability Provider","Duke Street Bungalows","R2705"
"Wolverhampton City Council","http://opendatacommunities.org/id/metropolitan-district-council/wolverhampton","705916","Nobisco Limited","500729","18.00","Cleaning Supplies and Materials","130189395","29/09/2017","Leisure Services","Central Baths","R2705"
"Wolverhampton City Council","http://opendatacommunities.org/id/metropolitan-district-council/wolverhampton","705916","Nobisco Limited","496505","149.92","Cleaning Supplies and Materials","130186891","06/09/2017","Leisure Services","Central Baths","R2705"
"Wolverhampton City Council","http://opendatacommunities.org/id/metropolitan-district-council/wolverhampton","705916","Nobisco Limited","497243","5.19","Cleaning Supplies and Materials","130186601","06/09/2017","Markets","Bilston Market and Licensed Operations","R2705"
"Wolverhampton City Council","http://opendatacommunities.org/id/metropolitan-district-council/wolverhampton","705916","Nobisco Limited","498419","355.10","Cleaning Supplies and Materials","130187520","15/09/2017","Leisure Services","Central Baths","R2705"
"Wolverhampton City Council","http://opendatacommunities.org/id/metropolitan-district-council/wolverhampton","705916","Nobisco Limited","496614","237.93","Cleaning Supplies and Materials","130185865","18/09/2017","Older People Provider Services","Bradley Lodge Resource Centre","R2705"
"Wolverhampton City Council","http://opendatacommunities.org/id/metropolitan-district-council/wolverhampton","705916","Nobisco Limited","500731","177.60","Cleaning Supplies and Materials","130189397","29/09/2017","Learning Disability Provider","Duke Street Bungalows","R2705"
"Wolverhampton City Council","http://opendatacommunities.org/id/metropolitan-district-council/wolverhampton","705916","Nobisco Limited","500506","24.48","Cleaning Supplies and Materials","130189252","29/09/2017","Markets","Bilston Market and Licensed Operations","R2705"
"Wolverhampton City Council","http://opendatacommunities.org/id/metropolitan-district-council/wolverhampton","705916","Nobisco Limited","496992","486.64","Cleaning Supplies and Materials","130186929","06/09/2017","Learning Disability Provider","Duke Street Bungalows","R2705"
"Wolverhampton City Council","http://opendatacommunities.org/id/metropolitan-district-council/wolverhampton","705916","Nobisco Limited","499604","216.84","Cleaning Supplies and Materials","130188657","22/09/2017","Older People Provider Services","Bradley Lodge Resource Centre","R2705"
"Wolverhampton City Council","http://opendatacommunities.org/id/metropolitan-district-council/wolverhampton","705916","Nobisco Limited","497565","148.29","Cleaning Supplies and Materials","130186768","22/09/2017","Catering","Education Catering - General Overheads","R2705"
"Wolverhampton City Council","http://opendatacommunities.org/id/metropolitan-district-council/wolverhampton","705916","Nobisco Limited","499163","28.00","Cleaning Supplies and Materials","130188338","20/09/2017","Learning Disability Provider","Duke Street Bungalows","R2705"
"Wolverhampton City Council","http://opendatacommunities.org/id/metropolitan-district-council/wolverhampton","705916","Nobisco Limited","498761","136.79","Cleaning Supplies and Materials","130187845","20/09/2017","Leisure Services","Bert Williams Leisure Centre Caf�","R2705"
"Wolverhampton City Council","http://opendatacommunities.org/id/metropolitan-district-council/wolverhampton","705916","Nobisco Limited","499161","135.00","Cleaning Supplies and Materials","130188336","22/09/2017","Markets","Bilston Market and Licensed Operations","R2705"
"Wolverhampton City Council","http://opendatacommunities.org/id/metropolitan-district-council/wolverhampton","705916","Nobisco Limited","496994","119.36","Cleaning Supplies and Materials","130186339","08/09/2017","Visitor Economy","Bantock - Tea Rooms","R2705"
"Wolverhampton City Council","http://opendatacommunities.org/id/metropolitan-district-council/wolverhampton","705916","Nobisco Limited","499387","76.53","Cleaning Supplies and Materials","130188520","20/09/2017","Catering","Education Catering - General Overheads","R2705"
"Wolverhampton City Council","http://opendatacommunities.org/id/metropolitan-district-council/wolverhampton","705916","Nobisco Limited","498162","38.99","Cleaning Supplies and Materials","130187267","13/09/2017","Older People Provider Services","Bradley Lodge Resource Centre","R2705"
"Wolverhampton City Council","http://opendatacommunities.org/id/metropolitan-district-council/wolverhampton","705916","Nobisco Limited","495647","2,092.56","Cleaning Supplies and Materials","130184350","01/09/2017","Cleaning","Cleaning of Buildings - General","R2705"
"Wolverhampton City Council","http://opendatacommunities.org/id/metropolitan-district-council/wolverhampton","705916","Nobisco Limited","497738","19.97","Cleaning Supplies and Materials","130187086","13/09/2017","Early Intervention","EIP Locality 2 � Bilston/Rocket Pool","R2705"
"Wolverhampton City Council","http://opendatacommunities.org/id/metropolitan-district-council/wolverhampton","705916","Nobisco Limited","497566","22.80","Cleaning Supplies and Materials","130186769","13/09/2017","Catering","Education Catering - General Overheads","R2705"
"Wolverhampton City Council","http://opendatacommunities.org/id/metropolitan-district-council/wolverhampton","705916","Nobisco Limited","496503","155.23","Cleaning Supplies and Materials","130185649","01/09/2017","Catering","Education Catering - General Overheads","R2705"
"Wolverhampton City Council","http://opendatacommunities.org/id/metropolitan-district-council/wolverhampton","705931","North East Wolverhampton Academy","NESI1740","6,250.00","Rent","130189552","27/09/2017","Facilities Management","Fordhouses/Oxley Community Centre","R2200"
"Wolverhampton City Council","http://opendatacommunities.org/id/metropolitan-district-council/wolverhampton","705945","Northgate Public Services (UK) Limited","91394668","1,947.00","Computing - Purchase of Software","130185242","08/09/2017","Revenues & Benefits","Revenues","R4531"
"Wolverhampton City Council","http://opendatacommunities.org/id/metropolitan-district-council/wolverhampton","705945","Northgate Public Services (UK) Limited","91394668","805.00","Computing - Purchase of Software","130185242","08/09/2017","Revenues & Benefits","Revenues","R4531"
"Wolverhampton City Council","http://opendatacommunities.org/id/metropolitan-district-council/wolverhampton","705945","Northgate Public Services (UK) Limited","91395417","1,242.35","Services - Professional Fees","130187523","27/09/2017","Customer Services","City Direct","R4400"
"Wolverhampton City Council","http://opendatacommunities.org/id/metropolitan-district-council/wolverhampton","705946","Northgate Vehicle Hire Limited","SL00166907CR","-15.21","Hire of Vehicles","190370510","08/09/2017","Fleet Services","Fleet Management","R3200"
"Wolverhampton City Council","http://opendatacommunities.org/id/metropolitan-district-council/wolverhampton","705946","Northgate Vehicle Hire Limited","SL04606076IN","342.32","Hire of Vehicles","190370519","08/09/2017","Fleet Services","Fleet Management","R3200"
"Wolverhampton City Council","http://opendatacommunities.org/id/metropolitan-district-council/wolverhampton","705946","Northgate Vehicle Hire Limited","SL04606080IN","306.46","Hire of Vehicles","190370522","08/09/2017","Fleet Services","Fleet Management","R3200"
"Wolverhampton City Council","http://opendatacommunities.org/id/metropolitan-district-council/wolverhampton","705946","Northgate Vehicle Hire Limited","SL04562449IN","10.20","Hire of Vehicles","190370514","08/09/2017","Fleet Services","Fleet Management","R3200"
"Wolverhampton City Council","http://opendatacommunities.org/id/metropolitan-district-council/wolverhampton","705946","Northgate Vehicle Hire Limited","SL04606100IN","190.52","Hire of Vehicles","190370542","08/09/2017","Fleet Services","Fleet Management","R3200"
"Wolverhampton City Council","http://opendatacommunities.org/id/metropolitan-district-council/wolverhampton","705946","Northgate Vehicle Hire Limited","SL04606093IN","342.32","Hire of Vehicles","190370535","08/09/2017","Fleet Services","Fleet Management","R3200"
"Wolverhampton City Council","http://opendatacommunities.org/id/metropolitan-district-council/wolverhampton","705946","Northgate Vehicle Hire Limited","SL04606098IN","224.40","Hire of Vehicles","190370540","08/09/2017","Fleet Services","Fleet Management","R3200"
"Wolverhampton City Council","http://opendatacommunities.org/id/metropolitan-district-council/wolverhampton","705946","Northgate Vehicle Hire Limited","SL04606085IN","224.40","Hire of Vehicles","190370527","08/09/2017","Fleet Services","Fleet Management","R3200"
"Wolverhampton City Council","http://opendatacommunities.org/id/metropolitan-district-council/wolverhampton","705946","Northgate Vehicle Hire Limited","SL04606094IN","306.46","Hire of Vehicles","190370536","08/09/2017","Fleet Services","Fleet Management","R3200"
"Wolverhampton City Council","http://opendatacommunities.org/id/metropolitan-district-council/wolverhampton","705946","Northgate Vehicle Hire Limited","SL00167525CR","-33.58","Hire of Vehicles","190370511","08/09/2017","Fleet Services","Fleet Management","R3200"
"Wolverhampton City Council","http://opendatacommunities.org/id/metropolitan-district-council/wolverhampton","705946","Northgate Vehicle Hire Limited","SL04570638IN","77.68","Hire of Vehicles","190370515","08/09/2017","Fleet Services","Fleet Management","R3200"
"Wolverhampton City Council","http://opendatacommunities.org/id/metropolitan-district-council/wolverhampton","705946","Northgate Vehicle Hire Limited","SL04606077IN","342.32","Hire of Vehicles","190370520","08/09/2017","Fleet Services","Fleet Management","R3200"
"Wolverhampton City Council","http://opendatacommunities.org/id/metropolitan-district-council/wolverhampton","705946","Northgate Vehicle Hire Limited","SL04606096IN","342.32","Hire of Vehicles","190370538","08/09/2017","Fleet Services","Fleet Management","R3200"
"Wolverhampton City Council","http://opendatacommunities.org/id/metropolitan-district-council/wolverhampton","705946","Northgate Vehicle Hire Limited","SL04606101IN","190.52","Hire of Vehicles","190370543","08/09/2017","Fleet Services","Fleet Management","R3200"
"Wolverhampton City Council","http://opendatacommunities.org/id/metropolitan-district-council/wolverhampton","705946","Northgate Vehicle Hire Limited","SL04606087IN","224.40","Hire of Vehicles","190370529","08/09/2017","Fleet Services","Fleet Management","R3200"
"Wolverhampton City Council","http://opendatacommunities.org/id/metropolitan-district-council/wolverhampton","705946","Northgate Vehicle Hire Limited","SL04559143IN","53.00","Hire of Vehicles","190370513","08/09/2017","Fleet Services","Fleet Management","R3200"
"Wolverhampton City Council","http://opendatacommunities.org/id/metropolitan-district-council/wolverhampton","705946","Northgate Vehicle Hire Limited","SL04606095IN","306.46","Hire of Vehicles","190370537","08/09/2017","Fleet Services","Fleet Management","R3200"
"Wolverhampton City Council","http://opendatacommunities.org/id/metropolitan-district-council/wolverhampton","705946","Northgate Vehicle Hire Limited","SL04606084IN","306.46","Hire of Vehicles","190370526","08/09/2017","Fleet Services","Fleet Management","R3200"
"Wolverhampton City Council","http://opendatacommunities.org/id/metropolitan-district-council/wolverhampton","705946","Northgate Vehicle Hire Limited","SL04606086IN","306.46","Hire of Vehicles","190370528","08/09/2017","Fleet Services","Fleet Management","R3200"
"Wolverhampton City Council","http://opendatacommunities.org/id/metropolitan-district-council/wolverhampton","705946","Northgate Vehicle Hire Limited","SL04606091IN","224.40","Hire of Vehicles","190370533","08/09/2017","Fleet Services","Fleet Management","R3200"
"Wolverhampton City Council","http://opendatacommunities.org/id/metropolitan-district-council/wolverhampton","705946","Northgate Vehicle Hire Limited","SL04606073IN","306.46","Hire of Vehicles","190370516","08/09/2017","Fleet Services","Fleet Management","R3200"
"Wolverhampton City Council","http://opendatacommunities.org/id/metropolitan-district-council/wolverhampton","705946","Northgate Vehicle Hire Limited","SL04606099IN","306.46","Hire of Vehicles","190370541","08/09/2017","Fleet Services","Fleet Management","R3200"
"Wolverhampton City Council","http://opendatacommunities.org/id/metropolitan-district-council/wolverhampton","705946","Northgate Vehicle Hire Limited","SL04606082IN","448.80","Hire of Vehicles","190370524","08/09/2017","Fleet Services","Fleet Management","R3200"
"Wolverhampton City Council","http://opendatacommunities.org/id/metropolitan-district-council/wolverhampton","705946","Northgate Vehicle Hire Limited","SL04606089IN","335.50","Hire of Vehicles","190370531","08/09/2017","Fleet Services","Fleet Management","R3200"
"Wolverhampton City Council","http://opendatacommunities.org/id/metropolitan-district-council/wolverhampton","705946","Northgate Vehicle Hire Limited","SL04606074IN","342.32","Hire of Vehicles","190370517","08/09/2017","Fleet Services","Fleet Management","R3200"
"Wolverhampton City Council","http://opendatacommunities.org/id/metropolitan-district-council/wolverhampton","705946","Northgate Vehicle Hire Limited","SL04606081IN","342.32","Hire of Vehicles","190370523","08/09/2017","Fleet Services","Fleet Management","R3200"
"Wolverhampton City Council","http://opendatacommunities.org/id/metropolitan-district-council/wolverhampton","705946","Northgate Vehicle Hire Limited","SL04606097IN","318.56","Hire of Vehicles","190370539","08/09/2017","Fleet Services","Fleet Management","R3200"
"Wolverhampton City Council","http://opendatacommunities.org/id/metropolitan-district-council/wolverhampton","705946","Northgate Vehicle Hire Limited","SL04606078IN","306.46","Hire of Vehicles","190370521","08/09/2017","Fleet Services","Fleet Management","R3200"
"Wolverhampton City Council","http://opendatacommunities.org/id/metropolitan-district-council/wolverhampton","705946","Northgate Vehicle Hire Limited","SL04606078IN","342.32","Hire of Vehicles","190370521","08/09/2017","Fleet Services","Fleet Management","R3200"
"Wolverhampton City Council","http://opendatacommunities.org/id/metropolitan-district-council/wolverhampton","705946","Northgate Vehicle Hire Limited","SL04606075IN","342.32","Hire of Vehicles","190370518","08/09/2017","Fleet Services","Fleet Management","R3200"
"Wolverhampton City Council","http://opendatacommunities.org/id/metropolitan-district-council/wolverhampton","705946","Northgate Vehicle Hire Limited","SL04534617IN","15.21","Hire of Vehicles","190370512","08/09/2017","Fleet Services","Fleet Management","R3200"
"Wolverhampton City Council","http://opendatacommunities.org/id/metropolitan-district-council/wolverhampton","705946","Northgate Vehicle Hire Limited","SL04606088IN","342.32","Hire of Vehicles","190370530","08/09/2017","Fleet Services","Fleet Management","R3200"
"Wolverhampton City Council","http://opendatacommunities.org/id/metropolitan-district-council/wolverhampton","705946","Northgate Vehicle Hire Limited","SL04606103IN","317.46","Hire of Vehicles","190370544","08/09/2017","Fleet Services","Fleet Management","R3200"
"Wolverhampton City Council","http://opendatacommunities.org/id/metropolitan-district-council/wolverhampton","705946","Northgate Vehicle Hire Limited","SL04606078INa","306.46","Hire of Vehicles","190371158","08/09/2017","Fleet Services","Fleet Management","R3200"
"Wolverhampton City Council","http://opendatacommunities.org/id/metropolitan-district-council/wolverhampton","705946","Northgate Vehicle Hire Limited","SL04606090IN","306.46","Hire of Vehicles","190370532","08/09/2017","Fleet Services","Fleet Management","R3200"
"Wolverhampton City Council","http://opendatacommunities.org/id/metropolitan-district-council/wolverhampton","705946","Northgate Vehicle Hire Limited","SL04606092IN","224.40","Hire of Vehicles","190370534","08/09/2017","Fleet Services","Fleet Management","R3200"
"Wolverhampton City Council","http://opendatacommunities.org/id/metropolitan-district-council/wolverhampton","705946","Northgate Vehicle Hire Limited","SL04606083IN","224.40","Hire of Vehicles","190370525","08/09/2017","Fleet Services","Fleet Management","R3200"
"Wolverhampton City Council","http://opendatacommunities.org/id/metropolitan-district-council/wolverhampton","705954","Nottingham Rehab Supplies/Nrs Limited","97438042","950.00","Equipment - Purchase","130185439","08/09/2017","Independent Living Service","Independent Living Service","R4000"
"Wolverhampton City Council","http://opendatacommunities.org/id/metropolitan-district-council/wolverhampton","705954","Nottingham Rehab Supplies/Nrs Limited","97438042","236.00","Equipment - Purchase","130185439","08/09/2017","Independent Living Service","Independent Living Service","R4000"
"Wolverhampton City Council","http://opendatacommunities.org/id/metropolitan-district-council/wolverhampton","705954","Nottingham Rehab Supplies/Nrs Limited","97444278","82.30","Equipment - Purchase","130187848","27/09/2017","Independent Living Service","Independent Living Service","R4000"
"Wolverhampton City Council","http://opendatacommunities.org/id/metropolitan-district-council/wolverhampton","705964","NPOWER","NP0256-79708947120","666.01","Electricity","190372332","13/09/2017","Housing Revenue Account","Hostels / Outreach","R2100"
"Wolverhampton City Council","http://opendatacommunities.org/id/metropolitan-district-council/wolverhampton","705964","NPOWER","NP0243-79943478860","729.30","Electricity","190372319","13/09/2017","Housing Revenue Account","Hostels / Outreach","R2100"
"Wolverhampton City Council","http://opendatacommunities.org/id/metropolitan-district-council/wolverhampton","705964","NPOWER","NP0252-79746576000","81.98","Electricity","190372328","13/09/2017","Housing Revenue Account","Hostels / Outreach","R2100"
"Wolverhampton City Council","http://opendatacommunities.org/id/metropolitan-district-council/wolverhampton","705964","NPOWER","NP0211-79472120740","348.61","Electricity","190368718","08/09/2017","Housing Revenue Account","Hostels / Outreach","R2100"
"Wolverhampton City Council","http://opendatacommunities.org/id/metropolitan-district-council/wolverhampton","705964","NPOWER","NP0251-79261433080","856.72","Electricity","190372327","13/09/2017","Housing Revenue Account","Hostels / Outreach","R2100"
"Wolverhampton City Council","http://opendatacommunities.org/id/metropolitan-district-council/wolverhampton","705964","NPOWER","NP0244-79549928880","672.86","Electricity","190372320","13/09/2017","Housing Revenue Account","Hostels / Outreach","R2100"
"Wolverhampton City Council","http://opendatacommunities.org/id/metropolitan-district-council/wolverhampton","705964","NPOWER","NP0254-79872600700","154.32","Electricity","190372330","13/09/2017","Housing Revenue Account","Hostels / Outreach","R2100"
"Wolverhampton City Council","http://opendatacommunities.org/id/metropolitan-district-council/wolverhampton","705964","NPOWER","NP0250-79180763890","353.23","Electricity","190372326","13/09/2017","Housing Revenue Account","Hostels / Outreach","R2100"
"Wolverhampton City Council","http://opendatacommunities.org/id/metropolitan-district-council/wolverhampton","705964","NPOWER","NP0248-79008077050","80.88","Electricity","190372324","13/09/2017","Housing Revenue Account","Hostels / Outreach","R2100"
"Wolverhampton City Council","http://opendatacommunities.org/id/metropolitan-district-council/wolverhampton","705964","NPOWER","NP0253-79746576000","784.47","Electricity","190372329","13/09/2017","Housing Revenue Account","Hostels / Outreach","R2100"
"Wolverhampton City Council","http://opendatacommunities.org/id/metropolitan-district-council/wolverhampton","705964","NPOWER","NP0246-79317409980","437.18","Electricity","190372322","13/09/2017","Housing Revenue Account","Hostels / Outreach","R2100"
"Wolverhampton City Council","http://opendatacommunities.org/id/metropolitan-district-council/wolverhampton","705964","NPOWER","NP0247-79658059440","130.23","Electricity","190372323","13/09/2017","Housing Revenue Account","Hostels / Outreach","R2100"
"Wolverhampton City Council","http://opendatacommunities.org/id/metropolitan-district-council/wolverhampton","705964","NPOWER","NP0400-79472120740","314.82","Electricity","190367602","08/09/2017","Housing Revenue Account","Hostels / Outreach","R2100"
"Wolverhampton City Council","http://opendatacommunities.org/id/metropolitan-district-council/wolverhampton","705964","NPOWER","NP0249-79037534440","208.82","Electricity","190372325","13/09/2017","Housing Revenue Account","Hostels / Outreach","R2100"
"Wolverhampton City Council","http://opendatacommunities.org/id/metropolitan-district-council/wolverhampton","705964","NPOWER","NP0255-79660575500","345.12","Electricity","190372331","13/09/2017","Housing Revenue Account","Hostels / Outreach","R2100"
"Wolverhampton City Council","http://opendatacommunities.org/id/metropolitan-district-council/wolverhampton","705964","NPOWER","NP0245-79412550060","263.61","Electricity","190372321","13/09/2017","Housing Revenue Account","Hostels / Outreach","R2100"
"Wolverhampton City Council","http://opendatacommunities.org/id/metropolitan-district-council/wolverhampton","705964","NPOWER","NP0242-79034839190","1,162.36","Electricity","190372318","13/09/2017","Housing Revenue Account","Hostels / Outreach","R2100"
"Wolverhampton City Council","http://opendatacommunities.org/id/metropolitan-district-council/wolverhampton","705966","NPOWER Limited-Mba Accounts Receivable","LGU44H3P","124.88","Electricity","190374644","20/09/2017","Corporate Asset Management","Central Utilities to Recharge","R2100"
"Wolverhampton City Council","http://opendatacommunities.org/id/metropolitan-district-council/wolverhampton","705966","NPOWER Limited-Mba Accounts Receivable","LGU43R3Q","324.77","Electricity","190374643","20/09/2017","Corporate Asset Management","Central Utilities to Recharge","R2100"
"Wolverhampton City Council","http://opendatacommunities.org/id/metropolitan-district-council/wolverhampton","705995","Oakley�S Limited","167908","9,770.00","Equipment - Purchase","130187849","13/09/2017","Environmental Maintenance","Ground Maintenance West","R4000"
"Wolverhampton City Council","http://opendatacommunities.org/id/metropolitan-district-council/wolverhampton","705995","Oakley�S Limited","166431","35.51","Equipment - Purchase","190372614","13/09/2017","Fleet Services","Fleet Management","R4000"
"Wolverhampton City Council","http://opendatacommunities.org/id/metropolitan-district-council/wolverhampton","705995","Oakley�S Limited","168095","364.48","Equipment - Purchase","190378084","27/09/2017","Fleet Services","Fleet Management","R4000"
"Wolverhampton City Council","http://opendatacommunities.org/id/metropolitan-district-council/wolverhampton","705995","Oakley�S Limited","168095","4.01","Equipment - Purchase","190378084","27/09/2017","Fleet Services","Fleet Management","R4000"
"Wolverhampton City Council","http://opendatacommunities.org/id/metropolitan-district-council/wolverhampton","705995","Oakley�S Limited","168106","69.47","Equipment - Purchase","190378086","27/09/2017","Fleet Services","Fleet Management","R4000"
"Wolverhampton City Council","http://opendatacommunities.org/id/metropolitan-district-council/wolverhampton","705995","Oakley�S Limited","167336","9.50","Equipment - Purchase","190370185","06/09/2017","Fleet Services","Fleet Management","R4000"
"Wolverhampton City Council","http://opendatacommunities.org/id/metropolitan-district-council/wolverhampton","705995","Oakley�S Limited","167248","54.61","Equipment - Purchase","190370183","06/09/2017","Fleet Services","Fleet Management","R4000"
"Wolverhampton City Council","http://opendatacommunities.org/id/metropolitan-district-council/wolverhampton","705995","Oakley�S Limited","167248","88.31","Equipment - Purchase","190370183","06/09/2017","Fleet Services","Fleet Management","R4000"
"Wolverhampton City Council","http://opendatacommunities.org/id/metropolitan-district-council/wolverhampton","705995","Oakley�S Limited","167248","270.17","Equipment - Purchase","190370183","06/09/2017","Fleet Services","Fleet Management","R4000"
"Wolverhampton City Council","http://opendatacommunities.org/id/metropolitan-district-council/wolverhampton","705995","Oakley�S Limited","167310","9.63","Equipment - Purchase","190370184","06/09/2017","Fleet Services","Fleet Management","R4000"
"Wolverhampton City Council","http://opendatacommunities.org/id/metropolitan-district-council/wolverhampton","705995","Oakley�S Limited","167336","2.78","Equipment - Purchase","190370185","06/09/2017","Fleet Services","Fleet Management","R4000"
"Wolverhampton City Council","http://opendatacommunities.org/id/metropolitan-district-council/wolverhampton","705995","Oakley�S Limited","167310","17.94","Equipment - Purchase","190370184","06/09/2017","Fleet Services","Fleet Management","R4000"
"Wolverhampton City Council","http://opendatacommunities.org/id/metropolitan-district-council/wolverhampton","705995","Oakley�S Limited","167310","195.56","Equipment - Purchase","190370184","06/09/2017","Fleet Services","Fleet Management","R4000"
"Wolverhampton City Council","http://opendatacommunities.org/id/metropolitan-district-council/wolverhampton","705995","Oakley�S Limited","167336","4.41","Equipment - Purchase","190370185","06/09/2017","Fleet Services","Fleet Management","R4000"
"Wolverhampton City Council","http://opendatacommunities.org/id/metropolitan-district-council/wolverhampton","705995","Oakley�S Limited","167336","3.45","Equipment - Purchase","190370185","06/09/2017","Fleet Services","Fleet Management","R4000"
"Wolverhampton City Council","http://opendatacommunities.org/id/metropolitan-district-council/wolverhampton","705995","Oakley�S Limited","167336","75.26","Equipment - Purchase","190370185","06/09/2017","Fleet Services","Fleet Management","R4000"
"Wolverhampton City Council","http://opendatacommunities.org/id/metropolitan-district-council/wolverhampton","705995","Oakley�S Limited","167336","1.50","Equipment - Purchase","190370185","06/09/2017","Fleet Services","Fleet Management","R4000"
"Wolverhampton City Council","http://opendatacommunities.org/id/metropolitan-district-council/wolverhampton","705995","Oakley�S Limited","167336","0.10","Equipment - Purchase","190370185","06/09/2017","Fleet Services","Fleet Management","R4000"
"Wolverhampton City Council","http://opendatacommunities.org/id/metropolitan-district-council/wolverhampton","705995","Oakley�S Limited","167522","23.53","Equipment - Purchase","190372617","13/09/2017","Fleet Services","Fleet Management","R4000"
"Wolverhampton City Council","http://opendatacommunities.org/id/metropolitan-district-council/wolverhampton","705995","Oakley�S Limited","167568","1.94","Equipment - Purchase","190372618","13/09/2017","Fleet Services","Fleet Management","R4000"
"Wolverhampton City Council","http://opendatacommunities.org/id/metropolitan-district-council/wolverhampton","705995","Oakley�S Limited","167935","11.09","Equipment - Purchase","190375449","22/09/2017","Fleet Services","Fleet Management","R4000"
"Wolverhampton City Council","http://opendatacommunities.org/id/metropolitan-district-council/wolverhampton","705995","Oakley�S Limited","167935","3.97","Equipment - Purchase","190375449","22/09/2017","Fleet Services","Fleet Management","R4000"
"Wolverhampton City Council","http://opendatacommunities.org/id/metropolitan-district-council/wolverhampton","705995","Oakley�S Limited","167952","27.94","Equipment - Purchase","190378079","27/09/2017","Fleet Services","Fleet Management","R4000"
"Wolverhampton City Council","http://opendatacommunities.org/id/metropolitan-district-council/wolverhampton","705995","Oakley�S Limited","167952","1.53","Equipment - Purchase","190378079","27/09/2017","Fleet Services","Fleet Management","R4000"
"Wolverhampton City Council","http://opendatacommunities.org/id/metropolitan-district-council/wolverhampton","705995","Oakley�S Limited","167952","1.53","Equipment - Purchase","190378079","27/09/2017","Fleet Services","Fleet Management","R4000"
"Wolverhampton City Council","http://opendatacommunities.org/id/metropolitan-district-council/wolverhampton","705995","Oakley�S Limited","167952","27.94","Equipment - Purchase","190378079","27/09/2017","Fleet Services","Fleet Management","R4000"
"Wolverhampton City Council","http://opendatacommunities.org/id/metropolitan-district-council/wolverhampton","705995","Oakley�S Limited","168007","36.93","Equipment - Purchase","190378081","27/09/2017","Fleet Services","Fleet Management","R4000"
"Wolverhampton City Council","http://opendatacommunities.org/id/metropolitan-district-council/wolverhampton","705995","Oakley�S Limited","166617","35.43","Equipment - Purchase","190369824","06/09/2017","Fleet Services","Fleet Management","R4000"
"Wolverhampton City Council","http://opendatacommunities.org/id/metropolitan-district-council/wolverhampton","705995","Oakley�S Limited","167337","0.10","Equipment - Purchase","190370186","06/09/2017","Fleet Services","Fleet Management","R4000"
"Wolverhampton City Council","http://opendatacommunities.org/id/metropolitan-district-council/wolverhampton","705995","Oakley�S Limited","167337","75.26","Equipment - Purchase","190370186","06/09/2017","Fleet Services","Fleet Management","R4000"
"Wolverhampton City Council","http://opendatacommunities.org/id/metropolitan-district-council/wolverhampton","705995","Oakley�S Limited","167337","1.50","Equipment - Purchase","190370186","06/09/2017","Fleet Services","Fleet Management","R4000"
"Wolverhampton City Council","http://opendatacommunities.org/id/metropolitan-district-council/wolverhampton","705995","Oakley�S Limited","167337","2.78","Equipment - Purchase","190370186","06/09/2017","Fleet Services","Fleet Management","R4000"
"Wolverhampton City Council","http://opendatacommunities.org/id/metropolitan-district-council/wolverhampton","705995","Oakley�S Limited","167337","4.41","Equipment - Purchase","190370186","06/09/2017","Fleet Services","Fleet Management","R4000"
"Wolverhampton City Council","http://opendatacommunities.org/id/metropolitan-district-council/wolverhampton","705995","Oakley�S Limited","167337","3.45","Equipment - Purchase","190370186","06/09/2017","Fleet Services","Fleet Management","R4000"
"Wolverhampton City Council","http://opendatacommunities.org/id/metropolitan-district-council/wolverhampton","705995","Oakley�S Limited","167337","9.50","Equipment - Purchase","190370186","06/09/2017","Fleet Services","Fleet Management","R4000"
"Wolverhampton City Council","http://opendatacommunities.org/id/metropolitan-district-council/wolverhampton","705995","Oakley�S Limited","168234","9.88","Equipment - Purchase","190378761","29/09/2017","Fleet Services","Fleet Management","R4000"
"Wolverhampton City Council","http://opendatacommunities.org/id/metropolitan-district-council/wolverhampton","705995","Oakley�S Limited","167478","83.66","Equipment - Purchase","190372616","13/09/2017","Fleet Services","Fleet Management","R4000"
"Wolverhampton City Council","http://opendatacommunities.org/id/metropolitan-district-council/wolverhampton","705995","Oakley�S Limited","166405","25.66","Equipment - Purchase","190372613","13/09/2017","Fleet Services","Fleet Management","R4000"
"Wolverhampton City Council","http://opendatacommunities.org/id/metropolitan-district-council/wolverhampton","705995","Oakley�S Limited","167934","49.89","Equipment - Purchase","190375448","22/09/2017","Fleet Services","Fleet Management","R4000"
"Wolverhampton City Council","http://opendatacommunities.org/id/metropolitan-district-council/wolverhampton","705995","Oakley�S Limited","167330","84.24","Equipment - Purchase","190378078","27/09/2017","Fleet Services","Fleet Management","R4000"
"Wolverhampton City Council","http://opendatacommunities.org/id/metropolitan-district-council/wolverhampton","705995","Oakley�S Limited","167330","50.54","Equipment - Purchase","190378078","27/09/2017","Fleet Services","Fleet Management","R4000"
"Wolverhampton City Council","http://opendatacommunities.org/id/metropolitan-district-council/wolverhampton","705995","Oakley�S Limited","167995","13.97","Equipment - Purchase","190378080","27/09/2017","Fleet Services","Fleet Management","R4000"
"Wolverhampton City Council","http://opendatacommunities.org/id/metropolitan-district-council/wolverhampton","705995","Oakley�S Limited","168092","4.01","Equipment - Purchase","190378083","27/09/2017","Fleet Services","Fleet Management","R4000"
"Wolverhampton City Council","http://opendatacommunities.org/id/metropolitan-district-council/wolverhampton","705995","Oakley�S Limited","168092","12.29","Equipment - Purchase","190378083","27/09/2017","Fleet Services","Fleet Management","R4000"
"Wolverhampton City Council","http://opendatacommunities.org/id/metropolitan-district-council/wolverhampton","705995","Oakley�S Limited","166044","23.62","Equipment - Purchase","190369823","06/09/2017","Fleet Services","Fleet Management","R4000"
"Wolverhampton City Council","http://opendatacommunities.org/id/metropolitan-district-council/wolverhampton","705995","Oakley�S Limited","166044","19.98","Equipment - Purchase","190369823","06/09/2017","Fleet Services","Fleet Management","R4000"
"Wolverhampton City Council","http://opendatacommunities.org/id/metropolitan-district-council/wolverhampton","705995","Oakley�S Limited","166698","65.89","Equipment - Purchase","190370182","06/09/2017","Fleet Services","Fleet Management","R4000"
"Wolverhampton City Council","http://opendatacommunities.org/id/metropolitan-district-council/wolverhampton","705995","Oakley�S Limited","166698","128.77","Equipment - Purchase","190370182","06/09/2017","Fleet Services","Fleet Management","R4000"
"Wolverhampton City Council","http://opendatacommunities.org/id/metropolitan-district-council/wolverhampton","705995","Oakley�S Limited","166698","128.77","Equipment - Purchase","190370182","06/09/2017","Fleet Services","Fleet Management","R4000"
"Wolverhampton City Council","http://opendatacommunities.org/id/metropolitan-district-council/wolverhampton","705995","Oakley�S Limited","167385","-9.50","Equipment - Purchase","190370188","06/09/2017","Fleet Services","Fleet Management","R4000"
"Wolverhampton City Council","http://opendatacommunities.org/id/metropolitan-district-council/wolverhampton","705995","Oakley�S Limited","166803","269.00","Equipment - Purchase","190372615","13/09/2017","Fleet Services","Fleet Management","R4000"
"Wolverhampton City Council","http://opendatacommunities.org/id/metropolitan-district-council/wolverhampton","705995","Oakley�S Limited","167909","9,770.00","Materials","130187524","13/09/2017","Environmental Maintenance","Ground Maintenance East","R4007"
"Wolverhampton City Council","http://opendatacommunities.org/id/metropolitan-district-council/wolverhampton","705995","Oakley�S Limited","167889","26.82","Equipment - Purchase","190375447","22/09/2017","Fleet Services","Fleet Management","R4000"
"Wolverhampton City Council","http://opendatacommunities.org/id/metropolitan-district-council/wolverhampton","705995","Oakley�S Limited","167889","145.05","Equipment - Purchase","190375447","22/09/2017","Fleet Services","Fleet Management","R4000"
"Wolverhampton City Council","http://opendatacommunities.org/id/metropolitan-district-council/wolverhampton","705995","Oakley�S Limited","167889","10.80","Equipment - Purchase","190375447","22/09/2017","Fleet Services","Fleet Management","R4000"
"Wolverhampton City Council","http://opendatacommunities.org/id/metropolitan-district-council/wolverhampton","705995","Oakley�S Limited","168096","36.93","Equipment - Purchase","190378085","27/09/2017","Fleet Services","Fleet Management","R4000"
"Wolverhampton City Council","http://opendatacommunities.org/id/metropolitan-district-council/wolverhampton","705995","Oakley�S Limited","168091","216.36","Equipment - Purchase","190378082","27/09/2017","Fleet Services","Fleet Management","R4000"
"Wolverhampton City Council","http://opendatacommunities.org/id/metropolitan-district-council/wolverhampton","705995","Oakley�S Limited","168091","6.66","Equipment - Purchase","190378082","27/09/2017","Fleet Services","Fleet Management","R4000"
"Wolverhampton City Council","http://opendatacommunities.org/id/metropolitan-district-council/wolverhampton","705995","Oakley�S Limited","168091","93.33","Equipment - Purchase","190378082","27/09/2017","Fleet Services","Fleet Management","R4000"
"Wolverhampton City Council","http://opendatacommunities.org/id/metropolitan-district-council/wolverhampton","705995","Oakley�S Limited","167382","-9.50","Equipment - Purchase","190370187","06/09/2017","Fleet Services","Fleet Management","R4000"
"Wolverhampton City Council","http://opendatacommunities.org/id/metropolitan-district-council/wolverhampton","705995","Oakley�S Limited","166618","35.43","Equipment - Purchase","190369825","06/09/2017","Fleet Services","Fleet Management","R4000"
"Wolverhampton City Council","http://opendatacommunities.org/id/metropolitan-district-council/wolverhampton","705995","Oakley�S Limited","168156","11.25","Equipment - Purchase","190378760","29/09/2017","Fleet Services","Fleet Management","R4000"
"Wolverhampton City Council","http://opendatacommunities.org/id/metropolitan-district-council/wolverhampton","705995","Oakley�S Limited","168156","6.64","Equipment - Purchase","190378760","29/09/2017","Fleet Services","Fleet Management","R4000"
"Wolverhampton City Council","http://opendatacommunities.org/id/metropolitan-district-council/wolverhampton","705995","Oakley�S Limited","168156","16.50","Equipment - Purchase","190378760","29/09/2017","Fleet Services","Fleet Management","R4000"
"Wolverhampton City Council","http://opendatacommunities.org/id/metropolitan-district-council/wolverhampton","705995","Oakley�S Limited","168156","31.09","Equipment - Purchase","190378760","29/09/2017","Fleet Services","Fleet Management","R4000"
"Wolverhampton City Council","http://opendatacommunities.org/id/metropolitan-district-council/wolverhampton","705995","Oakley�S Limited","168156","27.94","Equipment - Purchase","190378760","29/09/2017","Fleet Services","Fleet Management","R4000"
"Wolverhampton City Council","http://opendatacommunities.org/id/metropolitan-district-council/wolverhampton","706003","Ocean Swimming Pools Limited","21185","175.00","Materials","130186602","20/09/2017","Leisure Services","Bert Williams Leisure Centre","R4007"
"Wolverhampton City Council","http://opendatacommunities.org/id/metropolitan-district-council/wolverhampton","706003","Ocean Swimming Pools Limited","21186","13.50","Comms - Postage","130186603","20/09/2017","Leisure Services","Bert Williams Leisure Centre","R4503"
"Wolverhampton City Council","http://opendatacommunities.org/id/metropolitan-district-council/wolverhampton","706013","Office Depot(UK)Limited","SINV00399213","51.83","Stationery","130187525","20/09/2017","Skills","IMPACT","R4308"
"Wolverhampton City Council","http://opendatacommunities.org/id/metropolitan-district-council/wolverhampton","706030","Old Fallings Playgroup","TFT Autumn 2017 Inst 1","4,841.76","Grant Payments","190378735","29/09/2017","Early Years","Early Years Entitlement Funding for Disadvantaged 2 Year Olds","R4700"
"Wolverhampton City Council","http://opendatacommunities.org/id/metropolitan-district-council/wolverhampton","706033","OLM Systems Limited","2170030","4,264.85","Services - Consultants","130185243","13/09/2017","ICTS","Strategic ICTS (ICT Service Budget)","R4404"
"Wolverhampton City Council","http://opendatacommunities.org/id/metropolitan-district-council/wolverhampton","706033","OLM Systems Limited","3160174","289,500.00","Computing - Maint Agreements","130188522","20/09/2017","ICTS","Strategic ICTS (ICT Service Budget)","R4534"
"Wolverhampton City Council","http://opendatacommunities.org/id/metropolitan-district-council/wolverhampton","706047","Online Leisure Systems Limited","6827","637.00","Services - Professional Fees","130187526","27/09/2017","Strategic Organisation Development","Blakenhall Community & Healthy Living Centre","R4400"
"Wolverhampton City Council","http://opendatacommunities.org/id/metropolitan-district-council/wolverhampton","706047","Online Leisure Systems Limited","6800","69.00","Equipment - Purchase","130184641","06/09/2017","Strategic Organisation Development","Blakenhall Community & Healthy Living Centre","R4000"
"Wolverhampton City Council","http://opendatacommunities.org/id/metropolitan-district-council/wolverhampton","706051","Midlands Technology Centre (OOSHA)","506639","119.98","Comms - Telephone Rental","130187850","27/09/2017","Visitor Economy","Box Office Administration","R4504"
"Wolverhampton City Council","http://opendatacommunities.org/id/metropolitan-district-council/wolverhampton","706068","EE Limited","300400353","5,349.00","Comms - Mobile Telephones","130186675","13/09/2017","ICTS","Strategic ICTS (ICT Service Budget)","R4507"
"Wolverhampton City Council","http://opendatacommunities.org/id/metropolitan-district-council/wolverhampton","706068","EE Limited","126073601","-4,650.00","Comms - Mobile Telephones","130186676","13/09/2017","ICTS","Strategic ICTS (ICT Service Budget)","R4507"
"Wolverhampton City Council","http://opendatacommunities.org/id/metropolitan-district-council/wolverhampton","706120","P A & S G Southall","SVNEWS 033","40.20","Books","130187853","20/09/2017","Strategic Organisation Development","Spring Vale Library","R4309"
"Wolverhampton City Council","http://opendatacommunities.org/id/metropolitan-district-council/wolverhampton","706120","P A & S G Southall","SVNEWS 035","41.55","Books","130188830","27/09/2017","Strategic Organisation Development","Spring Vale Library","R4309"
"Wolverhampton City Council","http://opendatacommunities.org/id/metropolitan-district-council/wolverhampton","706120","P A & S G Southall","SVNEWS 032","41.55","Books","130187852","20/09/2017","Strategic Organisation Development","Spring Vale Library","R4309"
"Wolverhampton City Council","http://opendatacommunities.org/id/metropolitan-district-council/wolverhampton","706120","P A & S G Southall","SVNEWS034","42.40","Books","130187854","20/09/2017","Strategic Organisation Development","Spring Vale Library","R4309"
"Wolverhampton City Council","http://opendatacommunities.org/id/metropolitan-district-council/wolverhampton","706123","P A Turner","Tettenhall Tots NEF Autumn 2017 INST 1","7,752.00","TPP - Private Nursery Education Funding","190378733","29/09/2017","Early Years","Early Years Universal Entitlement for 3 and 4 Year Olds","R5035"
"Wolverhampton City Council","http://opendatacommunities.org/id/metropolitan-district-council/wolverhampton","706123","P A Turner","Tettenhall Tots TFT Autumn 2017 Inst 1","5,281.92","Grant Payments","190378743","29/09/2017","Early Years","Early Years Entitlement Funding for Disadvantaged 2 Year Olds","R4700"
"Wolverhampton City Council","http://opendatacommunities.org/id/metropolitan-district-council/wolverhampton","706154","P.F.Cusack (Tool Supplies) Limited","0000828405","488.00","Materials","130185654","13/09/2017","Highways Maintenance","Patching","R4007"
"Wolverhampton City Council","http://opendatacommunities.org/id/metropolitan-district-council/wolverhampton","706154","P.F.Cusack (Tool Supplies) Limited","0000831631","160.00","Materials","130187855","20/09/2017","Highways Maintenance","Patching","R4007"
"Wolverhampton City Council","http://opendatacommunities.org/id/metropolitan-district-council/wolverhampton","706154","P.F.Cusack (Tool Supplies) Limited","0000828430","3.95","Materials","130185655","13/09/2017","Highways Maintenance","Planned Highways Maintenance","R4007"
"Wolverhampton City Council","http://opendatacommunities.org/id/metropolitan-district-council/wolverhampton","706198","Parkeon Limited","UK100381","630.00","Equipment - R & M","130186976","20/09/2017","Parking Services","Car Parks Operational Staff","R4003"
"Wolverhampton City Council","http://opendatacommunities.org/id/metropolitan-district-council/wolverhampton","706198","Parkeon Limited","UK100378","10.00","Equipment - R & M","130186975","20/09/2017","Parking Services","St Peter�s Car Park","R4003"
"Wolverhampton City Council","http://opendatacommunities.org/id/metropolitan-district-council/wolverhampton","706200","Parkfield Medical Practice","FOS0361","75.86","Services - Professional Fees","190370688","08/09/2017","Looked After Children","Fostering Team & Allowances","R4400"
"Wolverhampton City Council","http://opendatacommunities.org/id/metropolitan-district-council/wolverhampton","706208","Parnell Products Limited","PP3479","1,750.00","Equipment - Purchase","130185244","08/09/2017","Independent Living Service","Independent Living Service","R4000"
"Wolverhampton City Council","http://opendatacommunities.org/id/metropolitan-district-council/wolverhampton","706210","Parton Builders","15/0304/DFG.2","14,475.00","Grants paid out","190372713","13/09/2017","-","Disabled Facilities Grants","C5000"
"Wolverhampton City Council","http://opendatacommunities.org/id/metropolitan-district-council/wolverhampton","706210","Parton Builders","17/0012/DFD","9,904.40","Grants paid out","190372715","13/09/2017","-","Disabled Facilities Grants","C5000"
"Wolverhampton City Council","http://opendatacommunities.org/id/metropolitan-district-council/wolverhampton","706214","Passenger Lift Services Limited","110544","145.48","Equipment - Purchase","190378748","29/09/2017","Fleet Services","Fleet Management","R4000"
"Wolverhampton City Council","http://opendatacommunities.org/id/metropolitan-district-council/wolverhampton","706214","Passenger Lift Services Limited","110544","341.74","Equipment - Purchase","190378748","29/09/2017","Fleet Services","Fleet Management","R4000"
"Wolverhampton City Council","http://opendatacommunities.org/id/metropolitan-district-council/wolverhampton","706214","Passenger Lift Services Limited","110544","46.74","Equipment - Purchase","190378748","29/09/2017","Fleet Services","Fleet Management","R4000"
"Wolverhampton City Council","http://opendatacommunities.org/id/metropolitan-district-council/wolverhampton","706214","Passenger Lift Services Limited","110118","344.74","Equipment - Purchase","190370168","06/09/2017","Fleet Services","Fleet Management","R4000"
"Wolverhampton City Council","http://opendatacommunities.org/id/metropolitan-district-council/wolverhampton","706214","Passenger Lift Services Limited","110118","22.03","Equipment - Purchase","190370168","06/09/2017","Fleet Services","Fleet Management","R4000"
"Wolverhampton City Council","http://opendatacommunities.org/id/metropolitan-district-council/wolverhampton","706214","Passenger Lift Services Limited","110207","423.30","Equipment - Purchase","190370169","06/09/2017","Fleet Services","Fleet Management","R4000"
"Wolverhampton City Council","http://opendatacommunities.org/id/metropolitan-district-council/wolverhampton","706223","Patterson Medical Limited","5144392111","339.95","Equipment - Purchase","130184642","01/09/2017","Independent Living Service","Independent Living Service","R4000"
"Wolverhampton City Council","http://opendatacommunities.org/id/metropolitan-district-council/wolverhampton","706223","Patterson Medical Limited","5144407781","83.50","Equipment - Purchase","130187857","27/09/2017","Independent Living Service","Independent Living Service","R4000"
"Wolverhampton City Council","http://opendatacommunities.org/id/metropolitan-district-council/wolverhampton","706223","Patterson Medical Limited","5144395608","199.00","Equipment - Purchase","130185443","06/09/2017","Independent Living Service","Independent Living Service","R4000"
"Wolverhampton City Council","http://opendatacommunities.org/id/metropolitan-district-council/wolverhampton","706223","Patterson Medical Limited","5144395608","570.00","Equipment - Purchase","130185443","06/09/2017","Independent Living Service","Independent Living Service","R4000"
"Wolverhampton City Council","http://opendatacommunities.org/id/metropolitan-district-council/wolverhampton","706259","Penderels Trust","137083B-20170926","180.00","Direct payments - Long Term support","190377930","27/09/2017","Physical Disabilities Care Purchasing","PD Care Purchasing (Spot Placements)","R6302"
"Wolverhampton City Council","http://opendatacommunities.org/id/metropolitan-district-council/wolverhampton","706259","Penderels Trust","0000146854","2,500.00","Direct payments - Long Term support","130184900","06/09/2017","Head of Commissioning","Commissioning Disabilities","R6302"
"Wolverhampton City Council","http://opendatacommunities.org/id/metropolitan-district-council/wolverhampton","706290","Penham Excel Limited","295322","1,350.00","Services - Professional Fees","130187858","13/09/2017","Public Protection","EHTS Operational Costs","R4400"
"Wolverhampton City Council","http://opendatacommunities.org/id/metropolitan-district-council/wolverhampton","706298","Penn Kids Day Nursery","TFT Autumn 2017 Inst 1","7,922.88","Grant Payments","190378735","29/09/2017","Early Years","Early Years Entitlement Funding for Disadvantaged 2 Year Olds","R4700"
"Wolverhampton City Council","http://opendatacommunities.org/id/metropolitan-district-council/wolverhampton","706298","Penn Kids Day Nursery","NEF Autumn 2017 INST 1","18,876.60","TPP - Private Nursery Education Funding","190378725","29/09/2017","Early Years","Early Years Universal Entitlement for 3 and 4 Year Olds","R5035"
"Wolverhampton City Council","http://opendatacommunities.org/id/metropolitan-district-council/wolverhampton","706301","Penna PLC","552097","5,000.00","Staff Advertising Costs","130185245","06/09/2017","Service Director Public Health & Wellbeing","Service Director Public Health & Wellbeing","R1700"
"Wolverhampton City Council","http://opendatacommunities.org/id/metropolitan-district-council/wolverhampton","706302","Pennwood Electrical Services Limited","005623","146.00","Equipment - R & M","130189556","27/09/2017","Visitor Economy","Bantock - Tea Rooms","R4003"
"Wolverhampton City Council","http://opendatacommunities.org/id/metropolitan-district-council/wolverhampton","706302","Pennwood Electrical Services Limited","005642","140.00","Equipment - R & M","130189557","27/09/2017","Visitor Economy","Bantock - Tea Rooms","R4003"
"Wolverhampton City Council","http://opendatacommunities.org/id/metropolitan-district-council/wolverhampton","706314","Performing Right Society Limited","5207474","1,681.54","Services - Fees and Charges","130188341","18/09/2017","Visitor Economy","The Little Civic","R4401"
"Wolverhampton City Council","http://opendatacommunities.org/id/metropolitan-district-council/wolverhampton","706315","Permanent Futures Limited","219961","4,600.00","Agency Staff","130186905","13/09/2017","Service Director Children & Young People","Children & Young People Support Costs","R1100"
"Wolverhampton City Council","http://opendatacommunities.org/id/metropolitan-district-council/wolverhampton","706317","Perry Hall Academy","Perry Hall Academy Early Years Payment Autumn Term Interim 2017/18","22,435.54","Grant Payments","190374373","20/09/2017","Schools","Academy Early years","R4700"
"Wolverhampton City Council","http://opendatacommunities.org/id/metropolitan-district-council/wolverhampton","706317","Perry Hall Academy","TFT Autumn 2017 Inst 1","13,865.04","Grant Payments","190378735","29/09/2017","Early Years","Early Years Entitlement Funding for Disadvantaged 2 Year Olds","R4700"
"Wolverhampton City Council","http://opendatacommunities.org/id/metropolitan-district-council/wolverhampton","706317","Perry Hall Academy","Perry Hall Academy Early Years Payment Spring Term 17 adjs x9 pupils","6,881.20","Grant Payments","190374371","20/09/2017","Schools","Academy Early years","R4700"
"Wolverhampton City Council","http://opendatacommunities.org/id/metropolitan-district-council/wolverhampton","706317","Perry Hall Academy","Perry Hall Academy Early Years Payment Summer Term Final 2017/18","29,562.71","Grant Payments","190374372","20/09/2017","Schools","Academy Early years","R4700"
"Wolverhampton City Council","http://opendatacommunities.org/id/metropolitan-district-council/wolverhampton","706323","Pestcare Environmental Limited","20994","405.00","Pest Control","130187527","13/09/2017","Learning Disability Provider","Support Plus","R2702"
"Wolverhampton City Council","http://opendatacommunities.org/id/metropolitan-district-council/wolverhampton","706332","Peters Limited","1656344","20.70","Books","130186064","08/09/2017","Strategic Organisation Development","Global Budgets","R4309"
"Wolverhampton City Council","http://opendatacommunities.org/id/metropolitan-district-council/wolverhampton","706332","Peters Limited","1652391","875.41","Books","130187859","22/09/2017","Strategic Organisation Development","Global Budgets","R4309"
"Wolverhampton City Council","http://opendatacommunities.org/id/metropolitan-district-council/wolverhampton","706332","Peters Limited","1655526","1,216.60","Books","130187693","20/09/2017","Strategic Organisation Development","Global Budgets","R4309"
"Wolverhampton City Council","http://opendatacommunities.org/id/metropolitan-district-council/wolverhampton","706332","Peters Limited","1659606","9.26","Books","130188342","22/09/2017","Strategic Organisation Development","Global Budgets","R4309"
"Wolverhampton City Council","http://opendatacommunities.org/id/metropolitan-district-council/wolverhampton","706332","Peters Limited","1656345","184.07","Books","130186065","13/09/2017","Strategic Organisation Development","Global Budgets","R4309"
"Wolverhampton City Council","http://opendatacommunities.org/id/metropolitan-district-council/wolverhampton","706346","Philips Wrtl/Philips Lighting/Indal.","260341034","7,400.00","Materials","130184646","01/09/2017","Street Lighting","Street Lighting Maintenance","R4007"
"Wolverhampton City Council","http://opendatacommunities.org/id/metropolitan-district-council/wolverhampton","706357","Phonak UK Limited","2591823502","8,886.30","Services - Assistive technology","130189128","27/09/2017","Standards and Vulnerable Pupils","SEN Sensory Inclusion","R4407"
"Wolverhampton City Council","http://opendatacommunities.org/id/metropolitan-district-council/wolverhampton","706364","Phs Group PLC","64834195","152.66","Contract Cleaning","130166777","08/09/2017","Facilities Management","Civic Centre","R2700"
"Wolverhampton City Council","http://opendatacommunities.org/id/metropolitan-district-council/wolverhampton","706364","Phs Group PLC","64937189","857.52","Cleaning Supplies and Materials","130188525","20/09/2017","Adult Education","Service Wide","R2705"
"Wolverhampton City Council","http://opendatacommunities.org/id/metropolitan-district-council/wolverhampton","706364","Phs Group PLC","65174581","73.40","Contract Cleaning","130190047","29/09/2017","Learning Disability Provider","Support Plus","R2700"
"Wolverhampton City Council","http://opendatacommunities.org/id/metropolitan-district-council/wolverhampton","706364","Phs Group PLC","64725851","88.14","Refuse Collection","130186843","06/09/2017","Standards and Vulnerable Pupils","SEN Early Years Team","R2704"
"Wolverhampton City Council","http://opendatacommunities.org/id/metropolitan-district-council/wolverhampton","706389","Pivotell Limited","114946","7,365.00","Equipment - Purchase","130188665","29/09/2017","Independent Living Service","Telecare","R4000"
"Wolverhampton City Council","http://opendatacommunities.org/id/metropolitan-district-council/wolverhampton","706389","Pivotell Limited","114946","40.00","Equipment - Purchase","130188665","29/09/2017","Independent Living Service","Telecare","R4000"
"Wolverhampton City Council","http://opendatacommunities.org/id/metropolitan-district-council/wolverhampton","706409","Playdays wolverhampton limited","TFT Autumn 2017 Inst 1","660.24","Grant Payments","190378735","29/09/2017","Early Years","Early Years Entitlement Funding for Disadvantaged 2 Year Olds","R4700"
"Wolverhampton City Council","http://opendatacommunities.org/id/metropolitan-district-council/wolverhampton","706409","Playdays wolverhampton limited","NEF Autumn 2017 INST 1","16,520.70","TPP - Private Nursery Education Funding","190378725","29/09/2017","Early Years","Early Years Universal Entitlement for 3 and 4 Year Olds","R5035"
"Wolverhampton City Council","http://opendatacommunities.org/id/metropolitan-district-council/wolverhampton","706417","Plexus Law","04325941","156.40","Insurance - General","130180910","08/09/2017","Audit Services","Legal Liability","R4962"
"Wolverhampton City Council","http://opendatacommunities.org/id/metropolitan-district-council/wolverhampton","706417","Plexus Law","04325941","39.10","Insurance - General","130180910","08/09/2017","Audit Services","Legal Liability","R4962"
"Wolverhampton City Council","http://opendatacommunities.org/id/metropolitan-district-council/wolverhampton","706417","Plexus Law","04325941","-156.40","Insurance - General","130180910","08/09/2017","Audit Services","Legal Liability","R4962"
"Wolverhampton City Council","http://opendatacommunities.org/id/metropolitan-district-council/wolverhampton","706417","Plexus Law","04325941","156.40","Insurance - General","130180910","08/09/2017","Audit Services","Legal Liability","R4962"
"Wolverhampton City Council","http://opendatacommunities.org/id/metropolitan-district-council/wolverhampton","706424","Pma International Limited","PMA 2671","15,405.25","Services - Professional Fees","130185248","13/09/2017","Headstart","Headstart Phase 3","R4400"
"Wolverhampton City Council","http://opendatacommunities.org/id/metropolitan-district-council/wolverhampton","706436","Pony Express UK Limited","106398","25.00","Equipment - Purchase","190372601","13/09/2017","Fleet Services","Fleet Management","R4000"
"Wolverhampton City Council","http://opendatacommunities.org/id/metropolitan-district-council/wolverhampton","706436","Pony Express UK Limited","106399","6.00","Equipment - Purchase","190372602","13/09/2017","Fleet Services","Fleet Management","R4000"
"Wolverhampton City Council","http://opendatacommunities.org/id/metropolitan-district-council/wolverhampton","706436","Pony Express UK Limited","106381","35.00","Comms - Postage","130183620","06/09/2017","Looked After Children","Adoption and Residence Team & Allowances","R4503"
"Wolverhampton City Council","http://opendatacommunities.org/id/metropolitan-district-council/wolverhampton","706439","Portakabin Limited","900787458","128.72","Room Hire","130187530","27/09/2017","Facilities Management","Hickman Avenue Depot","R2201"
"Wolverhampton City Council","http://opendatacommunities.org/id/metropolitan-district-council/wolverhampton","706439","Portakabin Limited","900789596","667.33","Equipment - Hire","130187861","27/09/2017","City Development","Westside","R4001"
"Wolverhampton City Council","http://opendatacommunities.org/id/metropolitan-district-council/wolverhampton","706439","Portakabin Limited","900787459","167.72","Room Hire","130187531","27/09/2017","Facilities Management","Hickman Avenue Depot","R2201"
"Wolverhampton City Council","http://opendatacommunities.org/id/metropolitan-district-council/wolverhampton","706439","Portakabin Limited","900787461","86.67","Room Hire","130187533","27/09/2017","Facilities Management","Culwell Street Depot","R2201"
"Wolverhampton City Council","http://opendatacommunities.org/id/metropolitan-district-council/wolverhampton","706439","Portakabin Limited","900787460","386.75","Room Hire","130187532","27/09/2017","Facilities Management","Hickman Avenue Depot","R2201"
"Wolverhampton City Council","http://opendatacommunities.org/id/metropolitan-district-council/wolverhampton","706439","Portakabin Limited","900787457","125.67","Room Hire","130187529","27/09/2017","Facilities Management","Hickman Avenue Depot","R2201"
"Wolverhampton City Council","http://opendatacommunities.org/id/metropolitan-district-council/wolverhampton","706439","Portakabin Limited","900787463","108.33","Room Hire","130187535","27/09/2017","Markets","Wholesale Market Facilities Management","R2201"
"Wolverhampton City Council","http://opendatacommunities.org/id/metropolitan-district-council/wolverhampton","706439","Portakabin Limited","900787462","272.97","Equipment - Hire","130187534","27/09/2017","Fleet Services","Passenger Transport - General","R4001"
"Wolverhampton City Council","http://opendatacommunities.org/id/metropolitan-district-council/wolverhampton","706453","Post Office Counters Limited","VEHICLE TAXATION SEPTEMBER 2017","2,640.00","Road Fund Licence","190372974","15/09/2017","Fleet Services","Fleet Management","R3004"
"Wolverhampton City Council","http://opendatacommunities.org/id/metropolitan-district-council/wolverhampton","706453","Post Office Counters Limited","VEHICLE TAXATION  2017 additional","480.00","Road Fund Licence","190371751","13/09/2017","Fleet Services","Fleet Management","R3004"
"Wolverhampton City Council","http://opendatacommunities.org/id/metropolitan-district-council/wolverhampton","706454","Postage By Phone","72090716","700.00","Comms - Postage","130186912","15/09/2017","Adult Education","Service Wide","R4503"
"Wolverhampton City Council","http://opendatacommunities.org/id/metropolitan-district-council/wolverhampton","706456","Posturite Limited","INV0476352","43.98","Equipment - Purchase","130188343","18/09/2017","Adults Assessment & Care Management North","Adult Services � North","R4000"
"Wolverhampton City Council","http://opendatacommunities.org/id/metropolitan-district-council/wolverhampton","706456","Posturite Limited","INV0410105","111.92","Stationery","130177106","13/09/2017","Central Corporate Budgets","Miscellaneous Corporate Costs","R4308"
"Wolverhampton City Council","http://opendatacommunities.org/id/metropolitan-district-council/wolverhampton","706469","Kennet Water Ltd (Pollet Pool Group)","SI1703495_PUK","185.25","Materials","130188834","22/09/2017","Environmental Maintenance","Parks - Ranger Service","R4007"
"Wolverhampton City Council","http://opendatacommunities.org/id/metropolitan-district-council/wolverhampton","706469","Kennet Water Ltd (Pollet Pool Group)","SI1703495_PUK","114.00","Materials","130188834","22/09/2017","Environmental Maintenance","Parks - Ranger Service","R4007"
"Wolverhampton City Council","http://opendatacommunities.org/id/metropolitan-district-council/wolverhampton","706469","Kennet Water Ltd (Pollet Pool Group)","SI1703483_PUK","4,668.31","Materials","130188833","22/09/2017","Environmental Maintenance","Parks - Ranger Service","R4007"
"Wolverhampton City Council","http://opendatacommunities.org/id/metropolitan-district-council/wolverhampton","706469","Kennet Water Ltd (Pollet Pool Group)","SI1703483_PUK","-0.06","Materials","130188833","22/09/2017","Environmental Maintenance","Parks - Ranger Service","R4007"
"Wolverhampton City Council","http://opendatacommunities.org/id/metropolitan-district-council/wolverhampton","706469","Kennet Water Ltd (Pollet Pool Group)","SI1703424_PUK","237.60","Materials","130188831","22/09/2017","Environmental Maintenance","Parks - Ranger Service","R4007"
"Wolverhampton City Council","http://opendatacommunities.org/id/metropolitan-district-council/wolverhampton","706469","Kennet Water Ltd (Pollet Pool Group)","SI1703424_PUK","7.25","Materials","130188831","22/09/2017","Environmental Maintenance","Parks - Ranger Service","R4007"
"Wolverhampton City Council","http://opendatacommunities.org/id/metropolitan-district-council/wolverhampton","706469","Kennet Water Ltd (Pollet Pool Group)","SI1703424_PUK","55.00","Materials","130188831","22/09/2017","Environmental Maintenance","Parks - Ranger Service","R4007"
"Wolverhampton City Council","http://opendatacommunities.org/id/metropolitan-district-council/wolverhampton","706469","Kennet Water Ltd (Pollet Pool Group)","SI1703430_PUK","185.25","Materials","130188832","22/09/2017","Environmental Maintenance","Parks - Ranger Service","R4007"
"Wolverhampton City Council","http://opendatacommunities.org/id/metropolitan-district-council/wolverhampton","706469","Kennet Water Ltd (Pollet Pool Group)","SI1703430_PUK","28.50","Materials","130188832","22/09/2017","Environmental Maintenance","Parks - Ranger Service","R4007"
"Wolverhampton City Council","http://opendatacommunities.org/id/metropolitan-district-council/wolverhampton","706470","Ppl Public Performance Licences","3404934","1,191.18","Services - General Licences","130189558","27/09/2017","Facilities Management","Caretakers Community Centre","R4402"
"Wolverhampton City Council","http://opendatacommunities.org/id/metropolitan-district-council/wolverhampton","706470","Ppl Public Performance Licences","3234553","461.06","Services - General Licences","130181728","06/09/2017","Specialist Support","Youth Service - Youth Cafe","R4402"
"Wolverhampton City Council","http://opendatacommunities.org/id/metropolitan-district-council/wolverhampton","706486","Premier Paper Group Limited","8841516","692.00","Stationery","130183621","01/09/2017","ICTS","Document Centre - General","R4308"
"Wolverhampton City Council","http://opendatacommunities.org/id/metropolitan-district-council/wolverhampton","706486","Premier Paper Group Limited","8867165","86.25","Stationery","130186913","20/09/2017","Adult Education","Beckminster","R4308"
"Wolverhampton City Council","http://opendatacommunities.org/id/metropolitan-district-council/wolverhampton","706486","Premier Paper Group Limited","8872965","675.60","Stationery","130186606","27/09/2017","ICTS","Document Centre - General","R4308"
"Wolverhampton City Council","http://opendatacommunities.org/id/metropolitan-district-council/wolverhampton","706486","Premier Paper Group Limited","8849234","692.00","Stationery","130184649","06/09/2017","ICTS","Document Centre - General","R4308"
"Wolverhampton City Council","http://opendatacommunities.org/id/metropolitan-district-council/wolverhampton","706505","Price Waterhouse Coopers","1354778020","1,500.00","Services - Consultants","130187536","13/09/2017","Strategic Finance","Strategic Finance","R4404"
"Wolverhampton City Council","http://opendatacommunities.org/id/metropolitan-district-council/wolverhampton","706538","Priory Steel Group Limited","305396","171.00","Equipment - Purchase","190378090","27/09/2017","Fleet Services","Fleet Management","R4000"
"Wolverhampton City Council","http://opendatacommunities.org/id/metropolitan-district-council/wolverhampton","706539","Prism UK Medical Limited - Westholme Ltd","5216642","608.94","Equipment - Purchase","130188529","27/09/2017","Independent Living Service","Independent Living Service","R4000"
"Wolverhampton City Council","http://opendatacommunities.org/id/metropolitan-district-council/wolverhampton","706567","Prontaprint Limited","77085","95.00","Printing","130188344","20/09/2017","Headstart","Headstart Phase 3","R4300"
"Wolverhampton City Council","http://opendatacommunities.org/id/metropolitan-district-council/wolverhampton","706567","Prontaprint Limited","77110","112.50","Marketing \ Non-staff advertising","130188346","20/09/2017","Visitor Economy","Civic & Wulfrun Outhouse & Other Comercial Events","R4317"
"Wolverhampton City Council","http://opendatacommunities.org/id/metropolitan-district-council/wolverhampton","706567","Prontaprint Limited","77223","312.53","Marketing \ Non-staff advertising","130188990","27/09/2017","Visitor Economy","Civic & Wulfrun Outhouse & Other Comercial Events","R4317"
"Wolverhampton City Council","http://opendatacommunities.org/id/metropolitan-district-council/wolverhampton","706567","Prontaprint Limited","77223","-312.52","Marketing \ Non-staff advertising","130188990","27/09/2017","Visitor Economy","Civic & Wulfrun Outhouse & Other Comercial Events","R4317"
"Wolverhampton City Council","http://opendatacommunities.org/id/metropolitan-district-council/wolverhampton","706567","Prontaprint Limited","77223","313.50","Marketing \ Non-staff advertising","130188990","27/09/2017","Visitor Economy","Civic & Wulfrun Outhouse & Other Comercial Events","R4317"
"Wolverhampton City Council","http://opendatacommunities.org/id/metropolitan-district-council/wolverhampton","706567","Prontaprint Limited","77277","367.88","Marketing \ Non-staff advertising","130189259","27/09/2017","Visitor Economy","Civic & Wulfrun Outhouse & Other Comercial Events","R4317"
"Wolverhampton City Council","http://opendatacommunities.org/id/metropolitan-district-council/wolverhampton","706567","Prontaprint Limited","77277","-367.88","Marketing \ Non-staff advertising","130189259","27/09/2017","Visitor Economy","Civic & Wulfrun Outhouse & Other Comercial Events","R4317"
"Wolverhampton City Council","http://opendatacommunities.org/id/metropolitan-district-council/wolverhampton","706567","Prontaprint Limited","77277","364.50","Marketing \ Non-staff advertising","130189259","27/09/2017","Visitor Economy","Civic & Wulfrun Outhouse & Other Comercial Events","R4317"
"Wolverhampton City Council","http://opendatacommunities.org/id/metropolitan-district-council/wolverhampton","706567","Prontaprint Limited","77222","120.00","Marketing \ Non-staff advertising","130188989","27/09/2017","Visitor Economy","Civic & Wulfrun In-House Promotions","R4317"
"Wolverhampton City Council","http://opendatacommunities.org/id/metropolitan-district-council/wolverhampton","706567","Prontaprint Limited","76719","22.00","Marketing \ Non-staff advertising","130178542","06/09/2017","Visitor Economy","Civic & Wulfrun In-House Promotions","R4317"
"Wolverhampton City Council","http://opendatacommunities.org/id/metropolitan-district-council/wolverhampton","706567","Prontaprint Limited","77216","200.48","Marketing \ Non-staff advertising","130188533","27/09/2017","Visitor Economy","Civic & Wulfrun Outhouse & Other Comercial Events","R4317"
"Wolverhampton City Council","http://opendatacommunities.org/id/metropolitan-district-council/wolverhampton","706567","Prontaprint Limited","77216","-200.48","Marketing \ Non-staff advertising","130188533","27/09/2017","Visitor Economy","Civic & Wulfrun Outhouse & Other Comercial Events","R4317"
"Wolverhampton City Council","http://opendatacommunities.org/id/metropolitan-district-council/wolverhampton","706567","Prontaprint Limited","77216","200.00","Marketing \ Non-staff advertising","130188533","27/09/2017","Visitor Economy","Civic & Wulfrun Outhouse & Other Comercial Events","R4317"
"Wolverhampton City Council","http://opendatacommunities.org/id/metropolitan-district-council/wolverhampton","706567","Prontaprint Limited","77215","345.00","Services - Professional Fees","130188532","20/09/2017","Visitor Economy","Education And Access","R4400"
"Wolverhampton City Council","http://opendatacommunities.org/id/metropolitan-district-council/wolverhampton","706567","Prontaprint Limited","77275","81.00","Marketing \ Non-staff advertising","130189258","27/09/2017","Visitor Economy","Civic & Wulfrun In-House Promotions","R4317"
"Wolverhampton City Council","http://opendatacommunities.org/id/metropolitan-district-council/wolverhampton","706567","Prontaprint Limited","77224","263.50","Marketing \ Non-staff advertising","130188991","27/09/2017","Visitor Economy","Civic & Wulfrun In-House Promotions","R4317"
"Wolverhampton City Council","http://opendatacommunities.org/id/metropolitan-district-council/wolverhampton","706567","Prontaprint Limited","77288","100.00","Equipment - Purchase","130189402","29/09/2017","Leisure Services","Aldersley Leisure Village","R4000"
"Wolverhampton City Council","http://opendatacommunities.org/id/metropolitan-district-council/wolverhampton","706567","Prontaprint Limited","77288","40.00","Equipment - Purchase","130189402","29/09/2017","Leisure Services","Aldersley Leisure Village","R4000"
"Wolverhampton City Council","http://opendatacommunities.org/id/metropolitan-district-council/wolverhampton","706567","Prontaprint Limited","77288","95.00","Fixtures and Fittings - Purchases","130189402","29/09/2017","Leisure Services","Aldersley Leisure Village","R2500"
"Wolverhampton City Council","http://opendatacommunities.org/id/metropolitan-district-council/wolverhampton","706567","Prontaprint Limited","77122","185.00","Printing","130188348","20/09/2017","Headstart","Headstart Hubs","R4300"
"Wolverhampton City Council","http://opendatacommunities.org/id/metropolitan-district-council/wolverhampton","706567","Prontaprint Limited","77274","45.00","Marketing \ Non-staff advertising","130189256","27/09/2017","Visitor Economy","Civic & Wulfrun Outhouse & Other Comercial Events","R4317"
"Wolverhampton City Council","http://opendatacommunities.org/id/metropolitan-district-council/wolverhampton","706567","Prontaprint Limited","76720","63.00","Marketing \ Non-staff advertising","130178543","27/09/2017","Visitor Economy","Civic & Wulfrun Outhouse & Other Comercial Events","R4317"
"Wolverhampton City Council","http://opendatacommunities.org/id/metropolitan-district-council/wolverhampton","706567","Prontaprint Limited","77111","157.50","Marketing \ Non-staff advertising","130188347","27/09/2017","Visitor Economy","Civic & Wulfrun In-House Promotions","R4317"
"Wolverhampton City Council","http://opendatacommunities.org/id/metropolitan-district-council/wolverhampton","706567","Prontaprint Limited","77276","45.00","Marketing \ Non-staff advertising","130189401","29/09/2017","Visitor Economy","Civic & Wulfrun Outhouse & Other Comercial Events","R4317"
"Wolverhampton City Council","http://opendatacommunities.org/id/metropolitan-district-council/wolverhampton","706567","Prontaprint Limited","76958","157.50","Marketing \ Non-staff advertising","130182094","13/09/2017","Visitor Economy","Civic & Wulfrun Outhouse & Other Comercial Events","R4317"
"Wolverhampton City Council","http://opendatacommunities.org/id/metropolitan-district-council/wolverhampton","706567","Prontaprint Limited","77226","103.50","Marketing \ Non-staff advertising","130188534","20/09/2017","Visitor Economy","Civic & Wulfrun Outhouse & Other Comercial Events","R4317"
"Wolverhampton City Council","http://opendatacommunities.org/id/metropolitan-district-council/wolverhampton","706567","Prontaprint Limited","77167","67.50","Marketing \ Non-staff advertising","130188349","20/09/2017","Visitor Economy","Civic & Wulfrun Outhouse & Other Comercial Events","R4317"
"Wolverhampton City Council","http://opendatacommunities.org/id/metropolitan-district-council/wolverhampton","706567","Prontaprint Limited","77188","126.00","Marketing \ Non-staff advertising","130188350","27/09/2017","Visitor Economy","Civic & Wulfrun In-House Promotions","R4317"
"Wolverhampton City Council","http://opendatacommunities.org/id/metropolitan-district-council/wolverhampton","706567","Prontaprint Limited","77273","112.50","Marketing \ Non-staff advertising","130189257","27/09/2017","Visitor Economy","Civic & Wulfrun In-House Promotions","R4317"
"Wolverhampton City Council","http://opendatacommunities.org/id/metropolitan-district-council/wolverhampton","706567","Prontaprint Limited","76915","60.00","Marketing \ Non-staff advertising","130182583","06/09/2017","Visitor Economy","Civic & Wulfrun Outhouse & Other Comercial Events","R4317"
"Wolverhampton City Council","http://opendatacommunities.org/id/metropolitan-district-council/wolverhampton","706575","Prospects Sales & Marketing","00167684","190.00","Computing - Licences","130185026","08/09/2017","Skills","Connexions Contract","R4535"
"Wolverhampton City Council","http://opendatacommunities.org/id/metropolitan-district-council/wolverhampton","706575","Prospects Sales & Marketing","00167629","336.34","Publications","130184651","06/09/2017","Skills","Connexions Contract","R4310"
"Wolverhampton City Council","http://opendatacommunities.org/id/metropolitan-district-council/wolverhampton","706575","Prospects Sales & Marketing","00167629","-336.34","Publications","130184651","06/09/2017","Skills","Connexions Contract","R4310"
"Wolverhampton City Council","http://opendatacommunities.org/id/metropolitan-district-council/wolverhampton","706575","Prospects Sales & Marketing","00167629","330.84","Publications","130184651","06/09/2017","Skills","Connexions Contract","R4310"
"Wolverhampton City Council","http://opendatacommunities.org/id/metropolitan-district-council/wolverhampton","706575","Prospects Sales & Marketing","00167629","5.50","Publications","130184651","06/09/2017","Skills","Connexions Contract","R4310"
"Wolverhampton City Council","http://opendatacommunities.org/id/metropolitan-district-council/wolverhampton","706575","Prospects Sales & Marketing","00167811","20.00","Publications","130187268","27/09/2017","Skills","Connexions Contract","R4310"
"Wolverhampton City Council","http://opendatacommunities.org/id/metropolitan-district-council/wolverhampton","706576","Prospects Services","060736","5,026.75","Computing - Licences","130187537","13/09/2017","Skills","Connexions Contract","R4535"
"Wolverhampton City Council","http://opendatacommunities.org/id/metropolitan-district-council/wolverhampton","706578","Protec Fire Detection PLC","A03VQ1","406.28","R&M - Departmental planned (internal)","130184652","22/09/2017","Maintenance Programme","Civic Centre Repairs & Maintenance","R2000"
"Wolverhampton City Council","http://opendatacommunities.org/id/metropolitan-district-council/wolverhampton","706593","Public Analyst Scientific Serv","IN - 17 - WP - 000133","741.00","Computing - Maint Agreements","130184179","13/09/2017","Public Protection","Keep It Safe Campaign (PCT Funded)","R4534"
"Wolverhampton City Council","http://opendatacommunities.org/id/metropolitan-district-council/wolverhampton","706595","Public Policy Exchange","PPX 21098","236.00","Training Expenses","130188536","27/09/2017","Safeguarding","Head of Service Quality and Safeguarding","R1650"
"Wolverhampton City Council","http://opendatacommunities.org/id/metropolitan-district-council/wolverhampton","706607","Purchase Power Pitney Bowes","BE891549","461.62","Comms - Postage","130186607","20/09/2017","Youth Offending","Youth Offending Team","R4503"
"Wolverhampton City Council","http://opendatacommunities.org/id/metropolitan-district-council/wolverhampton","706607","Purchase Power Pitney Bowes","BE887708","19.03","Comms - Postage","130186068","15/09/2017","Catering","Education Catering - General Overheads","R4503"
"Wolverhampton City Council","http://opendatacommunities.org/id/metropolitan-district-council/wolverhampton","706607","Purchase Power Pitney Bowes","BE887708","19.03","Comms - Postage","130186068","15/09/2017","Cleaning","Cleaning of Buildings - General","R4503"
"Wolverhampton City Council","http://opendatacommunities.org/id/metropolitan-district-council/wolverhampton","706607","Purchase Power Pitney Bowes","28126568","644.05","Comms - Postage","130187862","13/09/2017","Youth Offending","Youth Offending Team","R4503"
"Wolverhampton City Council","http://opendatacommunities.org/id/metropolitan-district-council/wolverhampton","706607","Purchase Power Pitney Bowes","28126568","-644.05","Comms - Postage","130187862","13/09/2017","Youth Offending","Youth Offending Team","R4503"
"Wolverhampton City Council","http://opendatacommunities.org/id/metropolitan-district-council/wolverhampton","706607","Purchase Power Pitney Bowes","28126568","644.05","Comms - Postage","130187862","13/09/2017","Youth Offending","Youth Offending Team","R4503"
"Wolverhampton City Council","http://opendatacommunities.org/id/metropolitan-district-council/wolverhampton","706634","Quantaqua Limited","Wolv 1410","1,666.98","Contract Cleaning","130178060","06/09/2017","Catering","Education Catering - General Overheads","R2700"
"Wolverhampton City Council","http://opendatacommunities.org/id/metropolitan-district-council/wolverhampton","706634","Quantaqua Limited","1413","625.00","Contract Cleaning","130188836","27/09/2017","Adult Education","Caf�","R2700"
"Wolverhampton City Council","http://opendatacommunities.org/id/metropolitan-district-council/wolverhampton","706634","Quantaqua Limited","Wolv GT 697","372.40","Contract Cleaning","130178061","06/09/2017","Catering","Education Catering - General Overheads","R2700"
"Wolverhampton City Council","http://opendatacommunities.org/id/metropolitan-district-council/wolverhampton","706634","Quantaqua Limited","Wolv GT 698","186.20","Contract Cleaning","130182759","06/09/2017","Catering","Education Catering - General Overheads","R2700"
"Wolverhampton City Council","http://opendatacommunities.org/id/metropolitan-district-council/wolverhampton","706635","Quantified Tree Risk Assessment Limited","7293","85.50","Materials","130182977","01/09/2017","Environmental Maintenance","Arbor Scheme","R4007"
"Wolverhampton City Council","http://opendatacommunities.org/id/metropolitan-district-council/wolverhampton","706649","R A Port & Associates","1933 - 17","60.80","Services - Professional Fees","130189404","29/09/2017","Child Protection","Head of Service - CINCP","R4400"
"Wolverhampton City Council","http://opendatacommunities.org/id/metropolitan-district-council/wolverhampton","706649","R A Port & Associates","1932 - 17","62.60","Services - Professional Fees","130189260","29/09/2017","Child Protection","Head of Service - CINCP","R4400"
"Wolverhampton City Council","http://opendatacommunities.org/id/metropolitan-district-council/wolverhampton","706649","R A Port & Associates","1920-17","119.85","Services - Professional Fees","130186608","13/09/2017","Child Protection","Head of Service - CINCP","R4400"
"Wolverhampton City Council","http://opendatacommunities.org/id/metropolitan-district-council/wolverhampton","706668","R S Recovery Limited","00-099418","242.50","Services - Professional Fees","190370162","06/09/2017","Fleet Services","Fleet Management","R4400"
"Wolverhampton City Council","http://opendatacommunities.org/id/metropolitan-district-council/wolverhampton","706668","R S Recovery Limited","00-099599","217.50","Services - Professional Fees","190370163","06/09/2017","Fleet Services","Fleet Management","R4400"
"Wolverhampton City Council","http://opendatacommunities.org/id/metropolitan-district-council/wolverhampton","706668","R S Recovery Limited","00-099599","25.00","Services - Professional Fees","190370163","06/09/2017","Fleet Services","Fleet Management","R4400"
"Wolverhampton City Council","http://opendatacommunities.org/id/metropolitan-district-council/wolverhampton","706677","R.D.Jukes & Co Limited","11517","37,628.01","Construction and Conversion","130186775","08/09/2017","-","Electrical Works","C1100"
"Wolverhampton City Council","http://opendatacommunities.org/id/metropolitan-district-council/wolverhampton","706697","Radis Community Care","M9221","5,460.00","TPP - Home Care","130157967","29/09/2017","Older People Provider Services","Night Visiting Service","R5420"
"Wolverhampton City Council","http://opendatacommunities.org/id/metropolitan-district-council/wolverhampton","706697","Radis Community Care","3008201720170831","123.55","TPP - Home Care","190369189","01/09/2017","Older People Care Purchasing","OP Care Purchasing (Spot Placements)","R5420"
"Wolverhampton City Council","http://opendatacommunities.org/id/metropolitan-district-council/wolverhampton","706697","Radis Community Care","3008201720170831","49.42","TPP - Home Care","190369189","01/09/2017","Older People Care Purchasing","OP Care Purchasing (Spot Placements)","R5420"
"Wolverhampton City Council","http://opendatacommunities.org/id/metropolitan-district-council/wolverhampton","706697","Radis Community Care","3008201720170831","49.42","TPP - Home Care","190369189","01/09/2017","Older People Care Purchasing","OP Care Purchasing (Spot Placements)","R5420"
"Wolverhampton City Council","http://opendatacommunities.org/id/metropolitan-district-council/wolverhampton","706697","Radis Community Care","3008201720170831","31.77","TPP - Home Care","190369189","01/09/2017","Older People Care Purchasing","OP Care Purchasing (Spot Placements)","R5420"
"Wolverhampton City Council","http://opendatacommunities.org/id/metropolitan-district-council/wolverhampton","706697","Radis Community Care","3008201720170831","98.84","TPP - Home Care","190369189","01/09/2017","Older People Care Purchasing","OP Care Purchasing (Spot Placements)","R5420"
"Wolverhampton City Council","http://opendatacommunities.org/id/metropolitan-district-council/wolverhampton","706697","Radis Community Care","3008201720170831","98.84","TPP - Home Care","190369189","01/09/2017","Older People Care Purchasing","OP Care Purchasing (Spot Placements)","R5420"
"Wolverhampton City Council","http://opendatacommunities.org/id/metropolitan-district-council/wolverhampton","706697","Radis Community Care","3008201720170831","134.14","TPP - Home Care","190369189","01/09/2017","Older People Care Purchasing","OP Care Purchasing (Spot Placements)","R5420"
"Wolverhampton City Council","http://opendatacommunities.org/id/metropolitan-district-council/wolverhampton","706697","Radis Community Care","3008201720170831","130.61","TPP - Home Care","190369189","01/09/2017","Older People Care Purchasing","OP Care Purchasing (Spot Placements)","R5420"
"Wolverhampton City Council","http://opendatacommunities.org/id/metropolitan-district-council/wolverhampton","706697","Radis Community Care","3008201720170831","208.27","TPP - Home Care","190369189","01/09/2017","Older People Care Purchasing","OP Care Purchasing (Spot Placements)","R5420"
"Wolverhampton City Council","http://opendatacommunities.org/id/metropolitan-district-council/wolverhampton","706697","Radis Community Care","3008201720170831","35.30","TPP - Home Care","190369189","01/09/2017","Older People Care Purchasing","OP Care Purchasing (Spot Placements)","R5420"
"Wolverhampton City Council","http://opendatacommunities.org/id/metropolitan-district-council/wolverhampton","706697","Radis Community Care","3008201720170831","462.43","TPP - Home Care","190369189","01/09/2017","Older People Care Purchasing","OP Care Purchasing (Spot Placements)","R5420"
"Wolverhampton City Council","http://opendatacommunities.org/id/metropolitan-district-council/wolverhampton","706697","Radis Community Care","3008201720170831","476.55","TPP - Home Care","190369189","01/09/2017","Older People Care Purchasing","OP Care Purchasing (Spot Placements)","R5420"
"Wolverhampton City Council","http://opendatacommunities.org/id/metropolitan-district-council/wolverhampton","706697","Radis Community Care","3008201720170831","74.13","TPP - Home Care","190369189","01/09/2017","Older People Care Purchasing","OP Care Purchasing (Spot Placements)","R5420"
"Wolverhampton City Council","http://opendatacommunities.org/id/metropolitan-district-council/wolverhampton","706697","Radis Community Care","3008201720170831","218.86","TPP - Home Care","190369189","01/09/2017","Older People Care Purchasing","OP Care Purchasing (Spot Placements)","R5420"
"Wolverhampton City Council","http://opendatacommunities.org/id/metropolitan-district-council/wolverhampton","706697","Radis Community Care","3008201720170831","148.26","TPP - Home Care","190369189","01/09/2017","Older People Care Purchasing","OP Care Purchasing (Spot Placements)","R5420"
"Wolverhampton City Council","http://opendatacommunities.org/id/metropolitan-district-council/wolverhampton","706697","Radis Community Care","3008201720170831","52.95","TPP - Home Care","190369189","01/09/2017","Older People Care Purchasing","OP Care Purchasing (Spot Placements)","R5420"
"Wolverhampton City Council","http://opendatacommunities.org/id/metropolitan-district-council/wolverhampton","706697","Radis Community Care","3008201720170831","14.12","TPP - Home Care","190369189","01/09/2017","Older People Care Purchasing","OP Care Purchasing (Spot Placements)","R5420"
"Wolverhampton City Council","http://opendatacommunities.org/id/metropolitan-district-council/wolverhampton","706697","Radis Community Care","3008201720170831","116.49","TPP - Home Care","190369189","01/09/2017","Older People Care Purchasing","OP Care Purchasing (Spot Placements)","R5420"
"Wolverhampton City Council","http://opendatacommunities.org/id/metropolitan-district-council/wolverhampton","706697","Radis Community Care","3008201720170831","148.26","TPP - Home Care","190369189","01/09/2017","Older People Care Purchasing","OP Care Purchasing (Spot Placements)","R5420"
"Wolverhampton City Council","http://opendatacommunities.org/id/metropolitan-district-council/wolverhampton","706697","Radis Community Care","3008201720170831","148.26","TPP - Home Care","190369189","01/09/2017","Older People Care Purchasing","OP Care Purchasing (Spot Placements)","R5420"
"Wolverhampton City Council","http://opendatacommunities.org/id/metropolitan-district-council/wolverhampton","706697","Radis Community Care","3008201720170831","225.92","TPP - Home Care","190369189","01/09/2017","Older People Care Purchasing","OP Care Purchasing (Spot Placements)","R5420"
"Wolverhampton City Council","http://opendatacommunities.org/id/metropolitan-district-council/wolverhampton","706697","Radis Community Care","3008201720170831","42.36","TPP - Home Care","190369189","01/09/2017","Older People Care Purchasing","OP Care Purchasing (Spot Placements)","R5420"
"Wolverhampton City Council","http://opendatacommunities.org/id/metropolitan-district-council/wolverhampton","706697","Radis Community Care","3008201720170831","148.26","TPP - Home Care","190369189","01/09/2017","Older People Care Purchasing","OP Care Purchasing (Spot Placements)","R5420"
"Wolverhampton City Council","http://opendatacommunities.org/id/metropolitan-district-council/wolverhampton","706697","Radis Community Care","3008201720170831","144.73","TPP - Home Care","190369189","01/09/2017","Older People Care Purchasing","OP Care Purchasing (Spot Placements)","R5420"
"Wolverhampton City Council","http://opendatacommunities.org/id/metropolitan-district-council/wolverhampton","706697","Radis Community Care","3008201720170831","148.26","TPP - Home Care","190369189","01/09/2017","Older People Care Purchasing","OP Care Purchasing (Spot Placements)","R5420"
"Wolverhampton City Council","http://opendatacommunities.org/id/metropolitan-district-council/wolverhampton","706697","Radis Community Care","3008201720170831","225.92","TPP - Home Care","190369189","01/09/2017","Older People Care Purchasing","OP Care Purchasing (Spot Placements)","R5420"
"Wolverhampton City Council","http://opendatacommunities.org/id/metropolitan-district-council/wolverhampton","706697","Radis Community Care","3008201720170831","98.84","TPP - Home Care","190369189","01/09/2017","Older People Care Purchasing","OP Care Purchasing (Spot Placements)","R5420"
"Wolverhampton City Council","http://opendatacommunities.org/id/metropolitan-district-council/wolverhampton","706697","Radis Community Care","3008201720170831","321.23","TPP - Home Care","190369189","01/09/2017","Older People Care Purchasing","OP Care Purchasing (Spot Placements)","R5420"
"Wolverhampton City Council","http://opendatacommunities.org/id/metropolitan-district-council/wolverhampton","706697","Radis Community Care","3008201720170831","317.70","TPP - Home Care","190369189","01/09/2017","Older People Care Purchasing","OP Care Purchasing (Spot Placements)","R5420"
"Wolverhampton City Council","http://opendatacommunities.org/id/metropolitan-district-council/wolverhampton","706697","Radis Community Care","3008201720170831","52.95","TPP - Home Care","190369189","01/09/2017","Older People Care Purchasing","OP Care Purchasing (Spot Placements)","R5420"
"Wolverhampton City Council","http://opendatacommunities.org/id/metropolitan-district-council/wolverhampton","706697","Radis Community Care","3008201720170831","88.25","TPP - Home Care","190369189","01/09/2017","Older People Care Purchasing","OP Care Purchasing (Spot Placements)","R5420"
"Wolverhampton City Council","http://opendatacommunities.org/id/metropolitan-district-council/wolverhampton","706697","Radis Community Care","3008201720170831","63.54","TPP - Home Care","190369189","01/09/2017","Older People Care Purchasing","OP Care Purchasing (Spot Placements)","R5420"
"Wolverhampton City Council","http://opendatacommunities.org/id/metropolitan-district-council/wolverhampton","706697","Radis Community Care","3008201720170831","39.00","TPP - Home Care","190369189","01/09/2017","Older People Care Purchasing","OP Care Purchasing (Spot Placements)","R5420"
"Wolverhampton City Council","http://opendatacommunities.org/id/metropolitan-district-council/wolverhampton","706697","Radis Community Care","3008201720170831","105.90","TPP - Home Care","190369189","01/09/2017","Older People Care Purchasing","OP Care Purchasing (Spot Placements)","R5420"
"Wolverhampton City Council","http://opendatacommunities.org/id/metropolitan-district-council/wolverhampton","706697","Radis Community Care","3008201720170831","120.02","TPP - Home Care","190369189","01/09/2017","Older People Care Purchasing","OP Care Purchasing (Spot Placements)","R5420"
"Wolverhampton City Council","http://opendatacommunities.org/id/metropolitan-district-council/wolverhampton","706697","Radis Community Care","3008201720170831","77.66","TPP - Home Care","190369189","01/09/2017","Older People Care Purchasing","OP Care Purchasing (Spot Placements)","R5420"
"Wolverhampton City Council","http://opendatacommunities.org/id/metropolitan-district-council/wolverhampton","706697","Radis Community Care","3008201720170831","74.13","TPP - Home Care","190369189","01/09/2017","Older People Care Purchasing","OP Care Purchasing (Spot Placements)","R5420"
"Wolverhampton City Council","http://opendatacommunities.org/id/metropolitan-district-council/wolverhampton","706697","Radis Community Care","3008201720170831","45.89","TPP - Home Care","190369189","01/09/2017","Older People Care Purchasing","OP Care Purchasing (Spot Placements)","R5420"
"Wolverhampton City Council","http://opendatacommunities.org/id/metropolitan-district-council/wolverhampton","706697","Radis Community Care","3008201720170831","38.83","TPP - Home Care","190369189","01/09/2017","Older People Care Purchasing","OP Care Purchasing (Spot Placements)","R5420"
"Wolverhampton City Council","http://opendatacommunities.org/id/metropolitan-district-council/wolverhampton","706697","Radis Community Care","3008201720170831","49.42","TPP - Home Care","190369189","01/09/2017","Older People Care Purchasing","OP Care Purchasing (Spot Placements)","R5420"
"Wolverhampton City Council","http://opendatacommunities.org/id/metropolitan-district-council/wolverhampton","706697","Radis Community Care","3008201720170831","74.13","TPP - Home Care","190369189","01/09/2017","Older People Care Purchasing","OP Care Purchasing (Spot Placements)","R5420"
"Wolverhampton City Council","http://opendatacommunities.org/id/metropolitan-district-council/wolverhampton","706697","Radis Community Care","3008201720170831","67.07","TPP - Home Care","190369189","01/09/2017","Older People Care Purchasing","OP Care Purchasing (Spot Placements)","R5420"
"Wolverhampton City Council","http://opendatacommunities.org/id/metropolitan-district-council/wolverhampton","706697","Radis Community Care","3008201720170831","31.77","TPP - Home Care","190369189","01/09/2017","Older People Care Purchasing","OP Care Purchasing (Spot Placements)","R5420"
"Wolverhampton City Council","http://opendatacommunities.org/id/metropolitan-district-council/wolverhampton","706697","Radis Community Care","3008201720170831","204.74","TPP - Home Care","190369189","01/09/2017","Older People Care Purchasing","OP Care Purchasing (Spot Placements)","R5420"
"Wolverhampton City Council","http://opendatacommunities.org/id/metropolitan-district-council/wolverhampton","706697","Radis Community Care","3008201720170831","190.62","TPP - Home Care","190369189","01/09/2017","Older People Care Purchasing","OP Care Purchasing (Spot Placements)","R5420"
"Wolverhampton City Council","http://opendatacommunities.org/id/metropolitan-district-council/wolverhampton","706697","Radis Community Care","3008201720170831","123.55","TPP - Home Care","190369189","01/09/2017","Older People Care Purchasing","OP Care Purchasing (Spot Placements)","R5420"
"Wolverhampton City Council","http://opendatacommunities.org/id/metropolitan-district-council/wolverhampton","706697","Radis Community Care","3008201720170831","172.97","TPP - Home Care","190369189","01/09/2017","Older People Care Purchasing","OP Care Purchasing (Spot Placements)","R5420"
"Wolverhampton City Council","http://opendatacommunities.org/id/metropolitan-district-council/wolverhampton","706697","Radis Community Care","3008201720170831","148.26","TPP - Home Care","190369189","01/09/2017","Older People Care Purchasing","OP Care Purchasing (Spot Placements)","R5420"
"Wolverhampton City Council","http://opendatacommunities.org/id/metropolitan-district-council/wolverhampton","706697","Radis Community Care","3008201720170831","172.97","TPP - Home Care","190369189","01/09/2017","Older People Care Purchasing","OP Care Purchasing (Spot Placements)","R5420"
"Wolverhampton City Council","http://opendatacommunities.org/id/metropolitan-district-council/wolverhampton","706697","Radis Community Care","3008201720170831","222.39","TPP - Home Care","190369189","01/09/2017","Older People Care Purchasing","OP Care Purchasing (Spot Placements)","R5420"
"Wolverhampton City Council","http://opendatacommunities.org/id/metropolitan-district-council/wolverhampton","706697","Radis Community Care","3008201720170831","222.39","TPP - Home Care","190369189","01/09/2017","Older People Care Purchasing","OP Care Purchasing (Spot Placements)","R5420"
"Wolverhampton City Council","http://opendatacommunities.org/id/metropolitan-district-council/wolverhampton","706697","Radis Community Care","3008201720170831","35.30","TPP - Home Care","190369189","01/09/2017","Older People Care Purchasing","OP Care Purchasing (Spot Placements)","R5420"
"Wolverhampton City Council","http://opendatacommunities.org/id/metropolitan-district-council/wolverhampton","706697","Radis Community Care","3008201720170831","49.42","TPP - Home Care","190369189","01/09/2017","Older People Care Purchasing","OP Care Purchasing (Spot Placements)","R5420"
"Wolverhampton City Council","http://opendatacommunities.org/id/metropolitan-district-council/wolverhampton","706697","Radis Community Care","3008201720170831","218.86","TPP - Home Care","190369189","01/09/2017","Older People Care Purchasing","OP Care Purchasing (Spot Placements)","R5420"
"Wolverhampton City Council","http://opendatacommunities.org/id/metropolitan-district-council/wolverhampton","706697","Radis Community Care","3008201720170831","215.33","TPP - Home Care","190369189","01/09/2017","Older People Care Purchasing","OP Care Purchasing (Spot Placements)","R5420"
"Wolverhampton City Council","http://opendatacommunities.org/id/metropolitan-district-council/wolverhampton","706697","Radis Community Care","3008201720170831","222.39","TPP - Home Care","190369189","01/09/2017","Older People Care Purchasing","OP Care Purchasing (Spot Placements)","R5420"
"Wolverhampton City Council","http://opendatacommunities.org/id/metropolitan-district-council/wolverhampton","706697","Radis Community Care","3008201720170831","148.26","TPP - Home Care","190369189","01/09/2017","Older People Care Purchasing","OP Care Purchasing (Spot Placements)","R5420"
"Wolverhampton City Council","http://opendatacommunities.org/id/metropolitan-district-council/wolverhampton","706697","Radis Community Care","3008201720170831","95.31","TPP - Home Care","190369189","01/09/2017","Older People Care Purchasing","OP Care Purchasing (Spot Placements)","R5420"
"Wolverhampton City Council","http://opendatacommunities.org/id/metropolitan-district-council/wolverhampton","706697","Radis Community Care","3008201720170831","35.30","TPP - Home Care","190369189","01/09/2017","Older People Care Purchasing","OP Care Purchasing (Spot Placements)","R5420"
"Wolverhampton City Council","http://opendatacommunities.org/id/metropolitan-district-council/wolverhampton","706697","Radis Community Care","3008201720170831","67.07","TPP - Home Care","190369189","01/09/2017","Older People Care Purchasing","OP Care Purchasing (Spot Placements)","R5420"
"Wolverhampton City Council","http://opendatacommunities.org/id/metropolitan-district-council/wolverhampton","706697","Radis Community Care","3008201720170831","105.90","TPP - Home Care","190369189","01/09/2017","Older People Care Purchasing","OP Care Purchasing (Spot Placements)","R5420"
"Wolverhampton City Council","http://opendatacommunities.org/id/metropolitan-district-council/wolverhampton","706697","Radis Community Care","3008201720170831","91.78","TPP - Home Care","190369189","01/09/2017","Older People Care Purchasing","OP Care Purchasing (Spot Placements)","R5420"
"Wolverhampton City Council","http://opendatacommunities.org/id/metropolitan-district-council/wolverhampton","706697","Radis Community Care","3008201720170831","52.95","TPP - Home Care","190369189","01/09/2017","Older People Care Purchasing","OP Care Purchasing (Spot Placements)","R5420"
"Wolverhampton City Council","http://opendatacommunities.org/id/metropolitan-district-council/wolverhampton","706697","Radis Community Care","3008201720170831","176.50","TPP - Home Care","190369189","01/09/2017","Older People Care Purchasing","OP Care Purchasing (Spot Placements)","R5420"
"Wolverhampton City Council","http://opendatacommunities.org/id/metropolitan-district-council/wolverhampton","706697","Radis Community Care","3008201720170831","105.90","TPP - Home Care","190369189","01/09/2017","Older People Care Purchasing","OP Care Purchasing (Spot Placements)","R5420"
"Wolverhampton City Council","http://opendatacommunities.org/id/metropolitan-district-council/wolverhampton","706697","Radis Community Care","3008201720170831","109.43","TPP - Home Care","190369189","01/09/2017","Older People Care Purchasing","OP Care Purchasing (Spot Placements)","R5420"
"Wolverhampton City Council","http://opendatacommunities.org/id/metropolitan-district-council/wolverhampton","706697","Radis Community Care","3008201720170831","144.73","TPP - Home Care","190369189","01/09/2017","Older People Care Purchasing","OP Care Purchasing (Spot Placements)","R5420"
"Wolverhampton City Council","http://opendatacommunities.org/id/metropolitan-district-council/wolverhampton","706697","Radis Community Care","3008201720170831","98.84","TPP - Home Care","190369189","01/09/2017","Older People Care Purchasing","OP Care Purchasing (Spot Placements)","R5420"
"Wolverhampton City Council","http://opendatacommunities.org/id/metropolitan-district-council/wolverhampton","706697","Radis Community Care","3008201720170831","14.12","TPP - Home Care","190369189","01/09/2017","Older People Care Purchasing","OP Care Purchasing (Spot Placements)","R5420"
"Wolverhampton City Council","http://opendatacommunities.org/id/metropolitan-district-council/wolverhampton","706697","Radis Community Care","3008201720170831","14.12","TPP - Home Care","190369189","01/09/2017","Older People Care Purchasing","OP Care Purchasing (Spot Placements)","R5420"
"Wolverhampton City Council","http://opendatacommunities.org/id/metropolitan-district-council/wolverhampton","706697","Radis Community Care","3008201720170831","91.78","TPP - Home Care","190369189","01/09/2017","Older People Care Purchasing","OP Care Purchasing (Spot Placements)","R5420"
"Wolverhampton City Council","http://opendatacommunities.org/id/metropolitan-district-council/wolverhampton","706697","Radis Community Care","3008201720170831","148.26","TPP - Home Care","190369189","01/09/2017","Older People Care Purchasing","OP Care Purchasing (Spot Placements)","R5420"
"Wolverhampton City Council","http://opendatacommunities.org/id/metropolitan-district-council/wolverhampton","706697","Radis Community Care","3008201720170831","127.08","TPP - Home Care","190369189","01/09/2017","Older People Care Purchasing","OP Care Purchasing (Spot Placements)","R5420"
"Wolverhampton City Council","http://opendatacommunities.org/id/metropolitan-district-council/wolverhampton","706697","Radis Community Care","3008201720170831","120.02","TPP - Home Care","190369189","01/09/2017","Older People Care Purchasing","OP Care Purchasing (Spot Placements)","R5420"
"Wolverhampton City Council","http://opendatacommunities.org/id/metropolitan-district-council/wolverhampton","706697","Radis Community Care","3008201720170831","127.08","TPP - Home Care","190369189","01/09/2017","Older People Care Purchasing","OP Care Purchasing (Spot Placements)","R5420"
"Wolverhampton City Council","http://opendatacommunities.org/id/metropolitan-district-council/wolverhampton","706697","Radis Community Care","3008201720170831","116.49","TPP - Home Care","190369189","01/09/2017","Older People Care Purchasing","OP Care Purchasing (Spot Placements)","R5420"
"Wolverhampton City Council","http://opendatacommunities.org/id/metropolitan-district-council/wolverhampton","706697","Radis Community Care","3008201720170831","148.26","TPP - Home Care","190369189","01/09/2017","Older People Care Purchasing","OP Care Purchasing (Spot Placements)","R5420"
"Wolverhampton City Council","http://opendatacommunities.org/id/metropolitan-district-council/wolverhampton","706697","Radis Community Care","3008201720170831","98.84","TPP - Home Care","190369189","01/09/2017","Older People Care Purchasing","OP Care Purchasing (Spot Placements)","R5420"
"Wolverhampton City Council","http://opendatacommunities.org/id/metropolitan-district-council/wolverhampton","706697","Radis Community Care","3008201720170831","98.84","TPP - Home Care","190369189","01/09/2017","Older People Care Purchasing","OP Care Purchasing (Spot Placements)","R5420"
"Wolverhampton City Council","http://opendatacommunities.org/id/metropolitan-district-council/wolverhampton","706697","Radis Community Care","3008201720170831","148.26","TPP - Home Care","190369189","01/09/2017","Older People Care Purchasing","OP Care Purchasing (Spot Placements)","R5420"
"Wolverhampton City Council","http://opendatacommunities.org/id/metropolitan-district-council/wolverhampton","706697","Radis Community Care","3008201720170831","24.71","TPP - Home Care","190369189","01/09/2017","Older People Care Purchasing","OP Care Purchasing (Spot Placements)","R5420"
"Wolverhampton City Council","http://opendatacommunities.org/id/metropolitan-district-council/wolverhampton","706697","Radis Community Care","3008201720170831","201.21","TPP - Home Care","190369189","01/09/2017","Older People Care Purchasing","OP Care Purchasing (Spot Placements)","R5420"
"Wolverhampton City Council","http://opendatacommunities.org/id/metropolitan-district-council/wolverhampton","706697","Radis Community Care","3008201720170831","35.30","TPP - Home Care","190369189","01/09/2017","Older People Care Purchasing","OP Care Purchasing (Spot Placements)","R5420"
"Wolverhampton City Council","http://opendatacommunities.org/id/metropolitan-district-council/wolverhampton","706697","Radis Community Care","3008201720170831","56.48","TPP - Home Care","190369189","01/09/2017","Older People Care Purchasing","OP Care Purchasing (Spot Placements)","R5420"
"Wolverhampton City Council","http://opendatacommunities.org/id/metropolitan-district-council/wolverhampton","706697","Radis Community Care","3008201720170831","7.06","TPP - Home Care","190369189","01/09/2017","Older People Care Purchasing","OP Care Purchasing (Spot Placements)","R5420"
"Wolverhampton City Council","http://opendatacommunities.org/id/metropolitan-district-council/wolverhampton","706697","Radis Community Care","3008201720170831","84.72","TPP - Home Care","190369189","01/09/2017","Older People Care Purchasing","OP Care Purchasing (Spot Placements)","R5420"
"Wolverhampton City Council","http://opendatacommunities.org/id/metropolitan-district-council/wolverhampton","706697","Radis Community Care","3008201720170831","84.72","TPP - Home Care","190369189","01/09/2017","Older People Care Purchasing","OP Care Purchasing (Spot Placements)","R5420"
"Wolverhampton City Council","http://opendatacommunities.org/id/metropolitan-district-council/wolverhampton","706697","Radis Community Care","3008201720170831","88.25","TPP - Home Care","190369189","01/09/2017","Older People Care Purchasing","OP Care Purchasing (Spot Placements)","R5420"
"Wolverhampton City Council","http://opendatacommunities.org/id/metropolitan-district-council/wolverhampton","706697","Radis Community Care","3008201720170831","95.31","TPP - Home Care","190369189","01/09/2017","Older People Care Purchasing","OP Care Purchasing (Spot Placements)","R5420"
"Wolverhampton City Council","http://opendatacommunities.org/id/metropolitan-district-council/wolverhampton","706697","Radis Community Care","3008201720170831","98.84","TPP - Home Care","190369189","01/09/2017","Older People Care Purchasing","OP Care Purchasing (Spot Placements)","R5420"
"Wolverhampton City Council","http://opendatacommunities.org/id/metropolitan-district-council/wolverhampton","706697","Radis Community Care","3008201720170831","49.42","TPP - Home Care","190369189","01/09/2017","Older People Care Purchasing","OP Care Purchasing (Spot Placements)","R5420"
"Wolverhampton City Council","http://opendatacommunities.org/id/metropolitan-district-council/wolverhampton","706697","Radis Community Care","3008201720170831","98.84","TPP - Home Care","190369189","01/09/2017","Older People Care Purchasing","OP Care Purchasing (Spot Placements)","R5420"
"Wolverhampton City Council","http://opendatacommunities.org/id/metropolitan-district-council/wolverhampton","706697","Radis Community Care","3008201720170831","91.78","TPP - Home Care","190369189","01/09/2017","Older People Care Purchasing","OP Care Purchasing (Spot Placements)","R5420"
"Wolverhampton City Council","http://opendatacommunities.org/id/metropolitan-district-council/wolverhampton","706697","Radis Community Care","3008201720170831","102.37","TPP - Home Care","190369189","01/09/2017","Older People Care Purchasing","OP Care Purchasing (Spot Placements)","R5420"
"Wolverhampton City Council","http://opendatacommunities.org/id/metropolitan-district-council/wolverhampton","706697","Radis Community Care","3008201720170831","278.87","TPP - Home Care","190369189","01/09/2017","Older People Care Purchasing","OP Care Purchasing (Spot Placements)","R5420"
"Wolverhampton City Council","http://opendatacommunities.org/id/metropolitan-district-council/wolverhampton","706697","Radis Community Care","3008201720170831","197.68","TPP - Home Care","190369189","01/09/2017","Older People Care Purchasing","OP Care Purchasing (Spot Placements)","R5420"
"Wolverhampton City Council","http://opendatacommunities.org/id/metropolitan-district-council/wolverhampton","706697","Radis Community Care","3008201720170831","98.84","TPP - Home Care","190369189","01/09/2017","Older People Care Purchasing","OP Care Purchasing (Spot Placements)","R5420"
"Wolverhampton City Council","http://opendatacommunities.org/id/metropolitan-district-council/wolverhampton","706697","Radis Community Care","3008201720170831","88.25","TPP - Home Care","190369189","01/09/2017","Older People Care Purchasing","OP Care Purchasing (Spot Placements)","R5420"
"Wolverhampton City Council","http://opendatacommunities.org/id/metropolitan-district-council/wolverhampton","706697","Radis Community Care","3008201720170831","201.21","TPP - Home Care","190369189","01/09/2017","Older People Care Purchasing","OP Care Purchasing (Spot Placements)","R5420"
"Wolverhampton City Council","http://opendatacommunities.org/id/metropolitan-district-council/wolverhampton","706697","Radis Community Care","3008201720170831","211.80","TPP - Home Care","190369189","01/09/2017","Older People Care Purchasing","OP Care Purchasing (Spot Placements)","R5420"
"Wolverhampton City Council","http://opendatacommunities.org/id/metropolitan-district-council/wolverhampton","706697","Radis Community Care","3008201720170831","56.48","TPP - Home Care","190369189","01/09/2017","Older People Care Purchasing","OP Care Purchasing (Spot Placements)","R5420"
"Wolverhampton City Council","http://opendatacommunities.org/id/metropolitan-district-council/wolverhampton","706697","Radis Community Care","3008201720170831","95.31","TPP - Home Care","190369189","01/09/2017","Older People Care Purchasing","OP Care Purchasing (Spot Placements)","R5420"
"Wolverhampton City Council","http://opendatacommunities.org/id/metropolitan-district-council/wolverhampton","706697","Radis Community Care","3008201720170831","49.42","TPP - Home Care","190369189","01/09/2017","Older People Care Purchasing","OP Care Purchasing (Spot Placements)","R5420"
"Wolverhampton City Council","http://opendatacommunities.org/id/metropolitan-district-council/wolverhampton","706697","Radis Community Care","3008201720170831","98.84","TPP - Home Care","190369189","01/09/2017","Older People Care Purchasing","OP Care Purchasing (Spot Placements)","R5420"
"Wolverhampton City Council","http://opendatacommunities.org/id/metropolitan-district-council/wolverhampton","706697","Radis Community Care","3008201720170831","14.12","TPP - Home Care","190369189","01/09/2017","Older People Care Purchasing","OP Care Purchasing (Spot Placements)","R5420"
"Wolverhampton City Council","http://opendatacommunities.org/id/metropolitan-district-council/wolverhampton","706697","Radis Community Care","3008201720170831","183.56","TPP - Home Care","190369189","01/09/2017","Older People Care Purchasing","OP Care Purchasing (Spot Placements)","R5420"
"Wolverhampton City Council","http://opendatacommunities.org/id/metropolitan-district-council/wolverhampton","706697","Radis Community Care","3008201720170831","112.96","TPP - Home Care","190369189","01/09/2017","Older People Care Purchasing","OP Care Purchasing (Spot Placements)","R5420"
"Wolverhampton City Council","http://opendatacommunities.org/id/metropolitan-district-council/wolverhampton","706697","Radis Community Care","3008201720170831","70.60","TPP - Home Care","190369189","01/09/2017","Older People Care Purchasing","OP Care Purchasing (Spot Placements)","R5420"
"Wolverhampton City Council","http://opendatacommunities.org/id/metropolitan-district-council/wolverhampton","706697","Radis Community Care","3008201720170831","52.95","TPP - Home Care","190369189","01/09/2017","Older People Care Purchasing","OP Care Purchasing (Spot Placements)","R5420"
"Wolverhampton City Council","http://opendatacommunities.org/id/metropolitan-district-council/wolverhampton","706697","Radis Community Care","3008201720170831","169.44","TPP - Home Care","190369189","01/09/2017","Older People Care Purchasing","OP Care Purchasing (Spot Placements)","R5420"
"Wolverhampton City Council","http://opendatacommunities.org/id/metropolitan-district-council/wolverhampton","706697","Radis Community Care","3008201720170831","127.08","TPP - Home Care","190369189","01/09/2017","Older People Care Purchasing","OP Care Purchasing (Spot Placements)","R5420"
"Wolverhampton City Council","http://opendatacommunities.org/id/metropolitan-district-council/wolverhampton","706697","Radis Community Care","3008201720170831","194.15","TPP - Home Care","190369189","01/09/2017","Older People Care Purchasing","OP Care Purchasing (Spot Placements)","R5420"
"Wolverhampton City Council","http://opendatacommunities.org/id/metropolitan-district-council/wolverhampton","706697","Radis Community Care","3008201720170831","98.84","TPP - Home Care","190369189","01/09/2017","Older People Care Purchasing","OP Care Purchasing (Spot Placements)","R5420"
"Wolverhampton City Council","http://opendatacommunities.org/id/metropolitan-district-council/wolverhampton","706697","Radis Community Care","3008201720170831","148.26","TPP - Home Care","190369189","01/09/2017","Older People Care Purchasing","OP Care Purchasing (Spot Placements)","R5420"
"Wolverhampton City Council","http://opendatacommunities.org/id/metropolitan-district-council/wolverhampton","706697","Radis Community Care","3008201720170831","67.07","TPP - Home Care","190369189","01/09/2017","Older People Care Purchasing","OP Care Purchasing (Spot Placements)","R5420"
"Wolverhampton City Council","http://opendatacommunities.org/id/metropolitan-district-council/wolverhampton","706697","Radis Community Care","3008201720170831","28.24","TPP - Home Care","190369189","01/09/2017","Older People Care Purchasing","OP Care Purchasing (Spot Placements)","R5420"
"Wolverhampton City Council","http://opendatacommunities.org/id/metropolitan-district-council/wolverhampton","706697","Radis Community Care","3008201720170831","130.61","TPP - Home Care","190369189","01/09/2017","Older People Care Purchasing","OP Care Purchasing (Spot Placements)","R5420"
"Wolverhampton City Council","http://opendatacommunities.org/id/metropolitan-district-council/wolverhampton","706697","Radis Community Care","3008201720170831","49.42","TPP - Home Care","190369189","01/09/2017","Older People Care Purchasing","OP Care Purchasing (Spot Placements)","R5420"
"Wolverhampton City Council","http://opendatacommunities.org/id/metropolitan-district-council/wolverhampton","706697","Radis Community Care","3008201720170831","222.39","TPP - Home Care","190369189","01/09/2017","Older People Care Purchasing","OP Care Purchasing (Spot Placements)","R5420"
"Wolverhampton City Council","http://opendatacommunities.org/id/metropolitan-district-council/wolverhampton","706697","Radis Community Care","3008201720170831","45.89","TPP - Home Care","190369189","01/09/2017","Older People Care Purchasing","OP Care Purchasing (Spot Placements)","R5420"
"Wolverhampton City Council","http://opendatacommunities.org/id/metropolitan-district-council/wolverhampton","706697","Radis Community Care","3008201720170831","197.68","TPP - Home Care","190369189","01/09/2017","Older People Care Purchasing","OP Care Purchasing (Spot Placements)","R5420"
"Wolverhampton City Council","http://opendatacommunities.org/id/metropolitan-district-council/wolverhampton","706697","Radis Community Care","3008201720170831","158.85","TPP - Home Care","190369189","01/09/2017","Older People Care Purchasing","OP Care Purchasing (Spot Placements)","R5420"
"Wolverhampton City Council","http://opendatacommunities.org/id/metropolitan-district-council/wolverhampton","706697","Radis Community Care","3008201720170831","208.27","TPP - Home Care","190369189","01/09/2017","Older People Care Purchasing","OP Care Purchasing (Spot Placements)","R5420"
"Wolverhampton City Council","http://opendatacommunities.org/id/metropolitan-district-council/wolverhampton","706697","Radis Community Care","3008201720170831","127.08","TPP - Home Care","190369189","01/09/2017","Older People Care Purchasing","OP Care Purchasing (Spot Placements)","R5420"
"Wolverhampton City Council","http://opendatacommunities.org/id/metropolitan-district-council/wolverhampton","706697","Radis Community Care","3008201720170831","74.13","TPP - Home Care","190369189","01/09/2017","Older People Care Purchasing","OP Care Purchasing (Spot Placements)","R5420"
"Wolverhampton City Council","http://opendatacommunities.org/id/metropolitan-district-council/wolverhampton","706697","Radis Community Care","3008201720170831","14.12","TPP - Home Care","190369189","01/09/2017","Older People Care Purchasing","OP Care Purchasing (Spot Placements)","R5420"
"Wolverhampton City Council","http://opendatacommunities.org/id/metropolitan-district-council/wolverhampton","706697","Radis Community Care","3008201720170831","204.74","TPP - Home Care","190369189","01/09/2017","Older People Care Purchasing","OP Care Purchasing (Spot Placements)","R5420"
"Wolverhampton City Council","http://opendatacommunities.org/id/metropolitan-district-council/wolverhampton","706697","Radis Community Care","3008201720170831","201.21","TPP - Home Care","190369189","01/09/2017","Older People Care Purchasing","OP Care Purchasing (Spot Placements)","R5420"
"Wolverhampton City Council","http://opendatacommunities.org/id/metropolitan-district-council/wolverhampton","706697","Radis Community Care","3008201720170831","215.33","TPP - Home Care","190369189","01/09/2017","Older People Care Purchasing","OP Care Purchasing (Spot Placements)","R5420"
"Wolverhampton City Council","http://opendatacommunities.org/id/metropolitan-district-council/wolverhampton","706697","Radis Community Care","3008201720170831","211.80","TPP - Home Care","190369189","01/09/2017","Older People Care Purchasing","OP Care Purchasing (Spot Placements)","R5420"
"Wolverhampton City Council","http://opendatacommunities.org/id/metropolitan-district-council/wolverhampton","706697","Radis Community Care","3008201720170831","148.26","TPP - Home Care","190369189","01/09/2017","Older People Care Purchasing","OP Care Purchasing (Spot Placements)","R5420"
"Wolverhampton City Council","http://opendatacommunities.org/id/metropolitan-district-council/wolverhampton","706697","Radis Community Care","3008201720170831","194.15","TPP - Home Care","190369189","01/09/2017","Older People Care Purchasing","OP Care Purchasing (Spot Placements)","R5420"
"Wolverhampton City Council","http://opendatacommunities.org/id/metropolitan-district-council/wolverhampton","706697","Radis Community Care","3008201720170831","49.42","TPP - Home Care","190369189","01/09/2017","Older People Care Purchasing","OP Care Purchasing (Spot Placements)","R5420"
"Wolverhampton City Council","http://opendatacommunities.org/id/metropolitan-district-council/wolverhampton","706697","Radis Community Care","3008201720170831","141.20","TPP - Home Care","190369189","01/09/2017","Older People Care Purchasing","OP Care Purchasing (Spot Placements)","R5420"
"Wolverhampton City Council","http://opendatacommunities.org/id/metropolitan-district-council/wolverhampton","706697","Radis Community Care","3008201720170831","151.79","TPP - Home Care","190369189","01/09/2017","Older People Care Purchasing","OP Care Purchasing (Spot Placements)","R5420"
"Wolverhampton City Council","http://opendatacommunities.org/id/metropolitan-district-council/wolverhampton","706697","Radis Community Care","3008201720170831","141.20","TPP - Home Care","190369189","01/09/2017","Older People Care Purchasing","OP Care Purchasing (Spot Placements)","R5420"
"Wolverhampton City Council","http://opendatacommunities.org/id/metropolitan-district-council/wolverhampton","706697","Radis Community Care","3008201720170831","183.56","TPP - Home Care","190369189","01/09/2017","Older People Care Purchasing","OP Care Purchasing (Spot Placements)","R5420"
"Wolverhampton City Council","http://opendatacommunities.org/id/metropolitan-district-council/wolverhampton","706697","Radis Community Care","3008201720170831","222.39","TPP - Home Care","190369189","01/09/2017","Older People Care Purchasing","OP Care Purchasing (Spot Placements)","R5420"
"Wolverhampton City Council","http://opendatacommunities.org/id/metropolitan-district-council/wolverhampton","706697","Radis Community Care","0309201720170912","137.67","TPP - Home Care","190372698","13/09/2017","Older People Care Purchasing","OP Care Purchasing (Spot Placements)","R5420"
"Wolverhampton City Council","http://opendatacommunities.org/id/metropolitan-district-council/wolverhampton","706697","Radis Community Care","0309201720170912","84.72","TPP - Home Care","190372698","13/09/2017","Older People Care Purchasing","OP Care Purchasing (Spot Placements)","R5420"
"Wolverhampton City Council","http://opendatacommunities.org/id/metropolitan-district-council/wolverhampton","706697","Radis Community Care","0309201720170912","130.61","TPP - Home Care","190372698","13/09/2017","Older People Care Purchasing","OP Care Purchasing (Spot Placements)","R5420"
"Wolverhampton City Council","http://opendatacommunities.org/id/metropolitan-district-council/wolverhampton","706697","Radis Community Care","0309201720170912","88.25","TPP - Home Care","190372698","13/09/2017","Older People Care Purchasing","OP Care Purchasing (Spot Placements)","R5420"
"Wolverhampton City Council","http://opendatacommunities.org/id/metropolitan-district-council/wolverhampton","706697","Radis Community Care","0309201720170912","24.71","TPP - Home Care","190372698","13/09/2017","Older People Care Purchasing","OP Care Purchasing (Spot Placements)","R5420"
"Wolverhampton City Council","http://opendatacommunities.org/id/metropolitan-district-council/wolverhampton","706697","Radis Community Care","0309201720170912","49.42","TPP - Home Care","190372698","13/09/2017","Older People Care Purchasing","OP Care Purchasing (Spot Placements)","R5420"
"Wolverhampton City Council","http://opendatacommunities.org/id/metropolitan-district-council/wolverhampton","706697","Radis Community Care","0309201720170912","144.73","TPP - Home Care","190372698","13/09/2017","Older People Care Purchasing","OP Care Purchasing (Spot Placements)","R5420"
"Wolverhampton City Council","http://opendatacommunities.org/id/metropolitan-district-council/wolverhampton","706697","Radis Community Care","0309201720170912","49.42","TPP - Home Care","190372698","13/09/2017","Older People Care Purchasing","OP Care Purchasing (Spot Placements)","R5420"
"Wolverhampton City Council","http://opendatacommunities.org/id/metropolitan-district-council/wolverhampton","706697","Radis Community Care","0309201720170912","49.42","TPP - Home Care","190372698","13/09/2017","Older People Care Purchasing","OP Care Purchasing (Spot Placements)","R5420"
"Wolverhampton City Council","http://opendatacommunities.org/id/metropolitan-district-council/wolverhampton","706697","Radis Community Care","0309201720170912","222.39","TPP - Home Care","190372698","13/09/2017","Older People Care Purchasing","OP Care Purchasing (Spot Placements)","R5420"
"Wolverhampton City Council","http://opendatacommunities.org/id/metropolitan-district-council/wolverhampton","706697","Radis Community Care","0309201720170912","222.39","TPP - Home Care","190372698","13/09/2017","Older People Care Purchasing","OP Care Purchasing (Spot Placements)","R5420"
"Wolverhampton City Council","http://opendatacommunities.org/id/metropolitan-district-council/wolverhampton","706697","Radis Community Care","0309201720170912","222.39","TPP - Home Care","190372698","13/09/2017","Older People Care Purchasing","OP Care Purchasing (Spot Placements)","R5420"
"Wolverhampton City Council","http://opendatacommunities.org/id/metropolitan-district-council/wolverhampton","706697","Radis Community Care","0309201720170912","151.79","TPP - Home Care","190372698","13/09/2017","Older People Care Purchasing","OP Care Purchasing (Spot Placements)","R5420"
"Wolverhampton City Council","http://opendatacommunities.org/id/metropolitan-district-council/wolverhampton","706697","Radis Community Care","0309201720170912","88.25","TPP - Home Care","190372698","13/09/2017","Older People Care Purchasing","OP Care Purchasing (Spot Placements)","R5420"
"Wolverhampton City Council","http://opendatacommunities.org/id/metropolitan-district-council/wolverhampton","706697","Radis Community Care","0309201720170912","42.36","TPP - Home Care","190372698","13/09/2017","Older People Care Purchasing","OP Care Purchasing (Spot Placements)","R5420"
"Wolverhampton City Council","http://opendatacommunities.org/id/metropolitan-district-council/wolverhampton","706697","Radis Community Care","0309201720170912","144.73","TPP - Home Care","190372698","13/09/2017","Older People Care Purchasing","OP Care Purchasing (Spot Placements)","R5420"
"Wolverhampton City Council","http://opendatacommunities.org/id/metropolitan-district-council/wolverhampton","706697","Radis Community Care","0309201720170912","148.26","TPP - Home Care","190372698","13/09/2017","Older People Care Purchasing","OP Care Purchasing (Spot Placements)","R5420"
"Wolverhampton City Council","http://opendatacommunities.org/id/metropolitan-district-council/wolverhampton","706697","Radis Community Care","0309201720170912","222.39","TPP - Home Care","190372698","13/09/2017","Older People Care Purchasing","OP Care Purchasing (Spot Placements)","R5420"
"Wolverhampton City Council","http://opendatacommunities.org/id/metropolitan-district-council/wolverhampton","706697","Radis Community Care","0309201720170912","31.77","TPP - Home Care","190372698","13/09/2017","Older People Care Purchasing","OP Care Purchasing (Spot Placements)","R5420"
"Wolverhampton City Council","http://opendatacommunities.org/id/metropolitan-district-council/wolverhampton","706697","Radis Community Care","0309201720170912","105.90","TPP - Home Care","190372698","13/09/2017","Older People Care Purchasing","OP Care Purchasing (Spot Placements)","R5420"
"Wolverhampton City Council","http://opendatacommunities.org/id/metropolitan-district-council/wolverhampton","706697","Radis Community Care","0309201720170912","70.60","TPP - Home Care","190372698","13/09/2017","Older People Care Purchasing","OP Care Purchasing (Spot Placements)","R5420"
"Wolverhampton City Council","http://opendatacommunities.org/id/metropolitan-district-council/wolverhampton","706697","Radis Community Care","0309201720170912","105.90","TPP - Home Care","190372698","13/09/2017","Older People Care Purchasing","OP Care Purchasing (Spot Placements)","R5420"
"Wolverhampton City Council","http://opendatacommunities.org/id/metropolitan-district-council/wolverhampton","706697","Radis Community Care","0309201720170912","74.13","TPP - Home Care","190372698","13/09/2017","Older People Care Purchasing","OP Care Purchasing (Spot Placements)","R5420"
"Wolverhampton City Council","http://opendatacommunities.org/id/metropolitan-district-council/wolverhampton","706697","Radis Community Care","0309201720170912","148.26","TPP - Home Care","190372698","13/09/2017","Older People Care Purchasing","OP Care Purchasing (Spot Placements)","R5420"
"Wolverhampton City Council","http://opendatacommunities.org/id/metropolitan-district-council/wolverhampton","706697","Radis Community Care","0309201720170912","222.39","TPP - Home Care","190372698","13/09/2017","Older People Care Purchasing","OP Care Purchasing (Spot Placements)","R5420"
"Wolverhampton City Council","http://opendatacommunities.org/id/metropolitan-district-council/wolverhampton","706697","Radis Community Care","0309201720170912","52.95","TPP - Home Care","190372698","13/09/2017","Older People Care Purchasing","OP Care Purchasing (Spot Placements)","R5420"
"Wolverhampton City Council","http://opendatacommunities.org/id/metropolitan-district-council/wolverhampton","706697","Radis Community Care","0309201720170912","74.13","TPP - Home Care","190372698","13/09/2017","Older People Care Purchasing","OP Care Purchasing (Spot Placements)","R5420"
"Wolverhampton City Council","http://opendatacommunities.org/id/metropolitan-district-council/wolverhampton","706697","Radis Community Care","0309201720170912","116.49","TPP - Home Care","190372698","13/09/2017","Older People Care Purchasing","OP Care Purchasing (Spot Placements)","R5420"
"Wolverhampton City Council","http://opendatacommunities.org/id/metropolitan-district-council/wolverhampton","706697","Radis Community Care","0309201720170912","95.31","TPP - Home Care","190372698","13/09/2017","Older People Care Purchasing","OP Care Purchasing (Spot Placements)","R5420"
"Wolverhampton City Council","http://opendatacommunities.org/id/metropolitan-district-council/wolverhampton","706697","Radis Community Care","0309201720170912","84.72","TPP - Home Care","190372698","13/09/2017","Older People Care Purchasing","OP Care Purchasing (Spot Placements)","R5420"
"Wolverhampton City Council","http://opendatacommunities.org/id/metropolitan-district-council/wolverhampton","706697","Radis Community Care","0309201720170912","183.56","TPP - Home Care","190372698","13/09/2017","Older People Care Purchasing","OP Care Purchasing (Spot Placements)","R5420"
"Wolverhampton City Council","http://opendatacommunities.org/id/metropolitan-district-council/wolverhampton","706697","Radis Community Care","0309201720170912","197.68","TPP - Home Care","190372698","13/09/2017","Older People Care Purchasing","OP Care Purchasing (Spot Placements)","R5420"
"Wolverhampton City Council","http://opendatacommunities.org/id/metropolitan-district-council/wolverhampton","706697","Radis Community Care","0309201720170912","197.68","TPP - Home Care","190372698","13/09/2017","Older People Care Purchasing","OP Care Purchasing (Spot Placements)","R5420"
"Wolverhampton City Council","http://opendatacommunities.org/id/metropolitan-district-council/wolverhampton","706697","Radis Community Care","0309201720170912","95.31","TPP - Home Care","190372698","13/09/2017","Older People Care Purchasing","OP Care Purchasing (Spot Placements)","R5420"
"Wolverhampton City Council","http://opendatacommunities.org/id/metropolitan-district-council/wolverhampton","706697","Radis Community Care","0309201720170912","148.26","TPP - Home Care","190372698","13/09/2017","Older People Care Purchasing","OP Care Purchasing (Spot Placements)","R5420"
"Wolverhampton City Council","http://opendatacommunities.org/id/metropolitan-district-council/wolverhampton","706697","Radis Community Care","0309201720170912","49.42","TPP - Home Care","190372698","13/09/2017","Older People Care Purchasing","OP Care Purchasing (Spot Placements)","R5420"
"Wolverhampton City Council","http://opendatacommunities.org/id/metropolitan-district-council/wolverhampton","706697","Radis Community Care","0309201720170912","98.84","TPP - Home Care","190372698","13/09/2017","Older People Care Purchasing","OP Care Purchasing (Spot Placements)","R5420"
"Wolverhampton City Council","http://opendatacommunities.org/id/metropolitan-district-council/wolverhampton","706697","Radis Community Care","0309201720170912","14.12","TPP - Home Care","190372698","13/09/2017","Older People Care Purchasing","OP Care Purchasing (Spot Placements)","R5420"
"Wolverhampton City Council","http://opendatacommunities.org/id/metropolitan-district-council/wolverhampton","706697","Radis Community Care","0309201720170912","208.27","TPP - Home Care","190372698","13/09/2017","Older People Care Purchasing","OP Care Purchasing (Spot Placements)","R5420"
"Wolverhampton City Council","http://opendatacommunities.org/id/metropolitan-district-council/wolverhampton","706697","Radis Community Care","0309201720170912","211.80","TPP - Home Care","190372698","13/09/2017","Older People Care Purchasing","OP Care Purchasing (Spot Placements)","R5420"
"Wolverhampton City Council","http://opendatacommunities.org/id/metropolitan-district-council/wolverhampton","706697","Radis Community Care","0309201720170912","225.92","TPP - Home Care","190372698","13/09/2017","Older People Care Purchasing","OP Care Purchasing (Spot Placements)","R5420"
"Wolverhampton City Council","http://opendatacommunities.org/id/metropolitan-district-council/wolverhampton","706697","Radis Community Care","0309201720170912","208.27","TPP - Home Care","190372698","13/09/2017","Older People Care Purchasing","OP Care Purchasing (Spot Placements)","R5420"
"Wolverhampton City Council","http://opendatacommunities.org/id/metropolitan-district-council/wolverhampton","706697","Radis Community Care","0309201720170912","109.43","TPP - Home Care","190372698","13/09/2017","Older People Care Purchasing","OP Care Purchasing (Spot Placements)","R5420"
"Wolverhampton City Council","http://opendatacommunities.org/id/metropolitan-district-council/wolverhampton","706697","Radis Community Care","0309201720170912","98.84","TPP - Home Care","190372698","13/09/2017","Older People Care Purchasing","OP Care Purchasing (Spot Placements)","R5420"
"Wolverhampton City Council","http://opendatacommunities.org/id/metropolitan-district-council/wolverhampton","706697","Radis Community Care","0309201720170912","21.18","TPP - Home Care","190372698","13/09/2017","Older People Care Purchasing","OP Care Purchasing (Spot Placements)","R5420"
"Wolverhampton City Council","http://opendatacommunities.org/id/metropolitan-district-council/wolverhampton","706697","Radis Community Care","0309201720170912","176.50","TPP - Home Care","190372698","13/09/2017","Older People Care Purchasing","OP Care Purchasing (Spot Placements)","R5420"
"Wolverhampton City Council","http://opendatacommunities.org/id/metropolitan-district-council/wolverhampton","706697","Radis Community Care","0309201720170912","317.70","TPP - Home Care","190372698","13/09/2017","Older People Care Purchasing","OP Care Purchasing (Spot Placements)","R5420"
"Wolverhampton City Council","http://opendatacommunities.org/id/metropolitan-district-council/wolverhampton","706697","Radis Community Care","0309201720170912","314.17","TPP - Home Care","190372698","13/09/2017","Older People Care Purchasing","OP Care Purchasing (Spot Placements)","R5420"
"Wolverhampton City Council","http://opendatacommunities.org/id/metropolitan-district-council/wolverhampton","706697","Radis Community Care","0309201720170912","52.95","TPP - Home Care","190372698","13/09/2017","Older People Care Purchasing","OP Care Purchasing (Spot Placements)","R5420"
"Wolverhampton City Council","http://opendatacommunities.org/id/metropolitan-district-council/wolverhampton","706697","Radis Community Care","0309201720170912","201.21","TPP - Home Care","190372698","13/09/2017","Older People Care Purchasing","OP Care Purchasing (Spot Placements)","R5420"
"Wolverhampton City Council","http://opendatacommunities.org/id/metropolitan-district-council/wolverhampton","706697","Radis Community Care","0309201720170912","123.55","TPP - Home Care","190372698","13/09/2017","Older People Care Purchasing","OP Care Purchasing (Spot Placements)","R5420"
"Wolverhampton City Council","http://opendatacommunities.org/id/metropolitan-district-council/wolverhampton","706697","Radis Community Care","0309201720170912","222.39","TPP - Home Care","190372698","13/09/2017","Older People Care Purchasing","OP Care Purchasing (Spot Placements)","R5420"
"Wolverhampton City Council","http://opendatacommunities.org/id/metropolitan-district-council/wolverhampton","706697","Radis Community Care","0309201720170912","218.86","TPP - Home Care","190372698","13/09/2017","Older People Care Purchasing","OP Care Purchasing (Spot Placements)","R5420"
"Wolverhampton City Council","http://opendatacommunities.org/id/metropolitan-district-council/wolverhampton","706697","Radis Community Care","0309201720170912","45.89","TPP - Home Care","190372698","13/09/2017","Older People Care Purchasing","OP Care Purchasing (Spot Placements)","R5420"
"Wolverhampton City Council","http://opendatacommunities.org/id/metropolitan-district-council/wolverhampton","706697","Radis Community Care","0309201720170912","155.32","TPP - Home Care","190372698","13/09/2017","Older People Care Purchasing","OP Care Purchasing (Spot Placements)","R5420"
"Wolverhampton City Council","http://opendatacommunities.org/id/metropolitan-district-council/wolverhampton","706697","Radis Community Care","0309201720170912","197.68","TPP - Home Care","190372698","13/09/2017","Older People Care Purchasing","OP Care Purchasing (Spot Placements)","R5420"
"Wolverhampton City Council","http://opendatacommunities.org/id/metropolitan-district-council/wolverhampton","706697","Radis Community Care","0309201720170912","197.68","TPP - Home Care","190372698","13/09/2017","Older People Care Purchasing","OP Care Purchasing (Spot Placements)","R5420"
"Wolverhampton City Council","http://opendatacommunities.org/id/metropolitan-district-council/wolverhampton","706697","Radis Community Care","0309201720170912","141.20","TPP - Home Care","190372698","13/09/2017","Older People Care Purchasing","OP Care Purchasing (Spot Placements)","R5420"
"Wolverhampton City Council","http://opendatacommunities.org/id/metropolitan-district-council/wolverhampton","706697","Radis Community Care","0309201720170912","74.13","TPP - Home Care","190372698","13/09/2017","Older People Care Purchasing","OP Care Purchasing (Spot Placements)","R5420"
"Wolverhampton City Council","http://opendatacommunities.org/id/metropolitan-district-council/wolverhampton","706697","Radis Community Care","0309201720170912","77.66","TPP - Home Care","190372698","13/09/2017","Older People Care Purchasing","OP Care Purchasing (Spot Placements)","R5420"
"Wolverhampton City Council","http://opendatacommunities.org/id/metropolitan-district-council/wolverhampton","706697","Radis Community Care","0309201720170912","24.71","TPP - Home Care","190372698","13/09/2017","Older People Care Purchasing","OP Care Purchasing (Spot Placements)","R5420"
"Wolverhampton City Council","http://opendatacommunities.org/id/metropolitan-district-council/wolverhampton","706697","Radis Community Care","0309201720170912","49.42","TPP - Home Care","190372698","13/09/2017","Older People Care Purchasing","OP Care Purchasing (Spot Placements)","R5420"
"Wolverhampton City Council","http://opendatacommunities.org/id/metropolitan-district-council/wolverhampton","706697","Radis Community Care","0309201720170912","105.90","TPP - Home Care","190372698","13/09/2017","Older People Care Purchasing","OP Care Purchasing (Spot Placements)","R5420"
"Wolverhampton City Council","http://opendatacommunities.org/id/metropolitan-district-council/wolverhampton","706697","Radis Community Care","0309201720170912","127.08","TPP - Home Care","190372698","13/09/2017","Older People Care Purchasing","OP Care Purchasing (Spot Placements)","R5420"
"Wolverhampton City Council","http://opendatacommunities.org/id/metropolitan-district-council/wolverhampton","706697","Radis Community Care","0309201720170912","127.08","TPP - Home Care","190372698","13/09/2017","Older People Care Purchasing","OP Care Purchasing (Spot Placements)","R5420"
"Wolverhampton City Council","http://opendatacommunities.org/id/metropolitan-district-council/wolverhampton","706697","Radis Community Care","0309201720170912","148.26","TPP - Home Care","190372698","13/09/2017","Older People Care Purchasing","OP Care Purchasing (Spot Placements)","R5420"
"Wolverhampton City Council","http://opendatacommunities.org/id/metropolitan-district-council/wolverhampton","706697","Radis Community Care","0309201720170912","194.15","TPP - Home Care","190372698","13/09/2017","Older People Care Purchasing","OP Care Purchasing (Spot Placements)","R5420"
"Wolverhampton City Council","http://opendatacommunities.org/id/metropolitan-district-council/wolverhampton","706697","Radis Community Care","0309201720170912","187.09","TPP - Home Care","190372698","13/09/2017","Older People Care Purchasing","OP Care Purchasing (Spot Placements)","R5420"
"Wolverhampton City Council","http://opendatacommunities.org/id/metropolitan-district-council/wolverhampton","706697","Radis Community Care","0309201720170912","49.42","TPP - Home Care","190372698","13/09/2017","Older People Care Purchasing","OP Care Purchasing (Spot Placements)","R5420"
"Wolverhampton City Council","http://opendatacommunities.org/id/metropolitan-district-council/wolverhampton","706697","Radis Community Care","0309201720170912","134.14","TPP - Home Care","190372698","13/09/2017","Older People Care Purchasing","OP Care Purchasing (Spot Placements)","R5420"
"Wolverhampton City Council","http://opendatacommunities.org/id/metropolitan-district-council/wolverhampton","706697","Radis Community Care","0309201720170912","148.26","TPP - Home Care","190372698","13/09/2017","Older People Care Purchasing","OP Care Purchasing (Spot Placements)","R5420"
"Wolverhampton City Council","http://opendatacommunities.org/id/metropolitan-district-council/wolverhampton","706697","Radis Community Care","0309201720170912","151.79","TPP - Home Care","190372698","13/09/2017","Older People Care Purchasing","OP Care Purchasing (Spot Placements)","R5420"
"Wolverhampton City Council","http://opendatacommunities.org/id/metropolitan-district-council/wolverhampton","706697","Radis Community Care","0309201720170912","183.56","TPP - Home Care","190372698","13/09/2017","Older People Care Purchasing","OP Care Purchasing (Spot Placements)","R5420"
"Wolverhampton City Council","http://opendatacommunities.org/id/metropolitan-district-council/wolverhampton","706697","Radis Community Care","0309201720170912","130.61","TPP - Home Care","190372698","13/09/2017","Older People Care Purchasing","OP Care Purchasing (Spot Placements)","R5420"
"Wolverhampton City Council","http://opendatacommunities.org/id/metropolitan-district-council/wolverhampton","706697","Radis Community Care","0309201720170912","98.84","TPP - Home Care","190372698","13/09/2017","Older People Care Purchasing","OP Care Purchasing (Spot Placements)","R5420"
"Wolverhampton City Council","http://opendatacommunities.org/id/metropolitan-district-council/wolverhampton","706697","Radis Community Care","0309201720170912","14.12","TPP - Home Care","190372698","13/09/2017","Older People Care Purchasing","OP Care Purchasing (Spot Placements)","R5420"
"Wolverhampton City Council","http://opendatacommunities.org/id/metropolitan-district-council/wolverhampton","706697","Radis Community Care","0309201720170912","14.12","TPP - Home Care","190372698","13/09/2017","Older People Care Purchasing","OP Care Purchasing (Spot Placements)","R5420"
"Wolverhampton City Council","http://opendatacommunities.org/id/metropolitan-district-council/wolverhampton","706697","Radis Community Care","0309201720170912","98.84","TPP - Home Care","190372698","13/09/2017","Older People Care Purchasing","OP Care Purchasing (Spot Placements)","R5420"
"Wolverhampton City Council","http://opendatacommunities.org/id/metropolitan-district-council/wolverhampton","706697","Radis Community Care","0309201720170912","141.20","TPP - Home Care","190372698","13/09/2017","Older People Care Purchasing","OP Care Purchasing (Spot Placements)","R5420"
"Wolverhampton City Council","http://opendatacommunities.org/id/metropolitan-district-council/wolverhampton","706697","Radis Community Care","0309201720170912","151.79","TPP - Home Care","190372698","13/09/2017","Older People Care Purchasing","OP Care Purchasing (Spot Placements)","R5420"
"Wolverhampton City Council","http://opendatacommunities.org/id/metropolitan-district-council/wolverhampton","706697","Radis Community Care","0309201720170912","49.42","TPP - Home Care","190372698","13/09/2017","Older People Care Purchasing","OP Care Purchasing (Spot Placements)","R5420"
"Wolverhampton City Council","http://opendatacommunities.org/id/metropolitan-district-council/wolverhampton","706697","Radis Community Care","0309201720170912","49.42","TPP - Home Care","190372698","13/09/2017","Older People Care Purchasing","OP Care Purchasing (Spot Placements)","R5420"
"Wolverhampton City Council","http://opendatacommunities.org/id/metropolitan-district-council/wolverhampton","706697","Radis Community Care","0309201720170912","123.55","TPP - Home Care","190372698","13/09/2017","Older People Care Purchasing","OP Care Purchasing (Spot Placements)","R5420"
"Wolverhampton City Council","http://opendatacommunities.org/id/metropolitan-district-council/wolverhampton","706697","Radis Community Care","0309201720170912","49.42","TPP - Home Care","190372698","13/09/2017","Older People Care Purchasing","OP Care Purchasing (Spot Placements)","R5420"
"Wolverhampton City Council","http://opendatacommunities.org/id/metropolitan-district-council/wolverhampton","706697","Radis Community Care","0309201720170912","49.42","TPP - Home Care","190372698","13/09/2017","Older People Care Purchasing","OP Care Purchasing (Spot Placements)","R5420"
"Wolverhampton City Council","http://opendatacommunities.org/id/metropolitan-district-council/wolverhampton","706697","Radis Community Care","0309201720170912","49.42","TPP - Home Care","190372698","13/09/2017","Older People Care Purchasing","OP Care Purchasing (Spot Placements)","R5420"
"Wolverhampton City Council","http://opendatacommunities.org/id/metropolitan-district-council/wolverhampton","706697","Radis Community Care","0309201720170912","77.66","TPP - Home Care","190372698","13/09/2017","Older People Care Purchasing","OP Care Purchasing (Spot Placements)","R5420"
"Wolverhampton City Council","http://opendatacommunities.org/id/metropolitan-district-council/wolverhampton","706697","Radis Community Care","0309201720170912","95.31","TPP - Home Care","190372698","13/09/2017","Older People Care Purchasing","OP Care Purchasing (Spot Placements)","R5420"
"Wolverhampton City Council","http://opendatacommunities.org/id/metropolitan-district-council/wolverhampton","706697","Radis Community Care","0309201720170912","222.39","TPP - Home Care","190372698","13/09/2017","Older People Care Purchasing","OP Care Purchasing (Spot Placements)","R5420"
"Wolverhampton City Council","http://opendatacommunities.org/id/metropolitan-district-council/wolverhampton","706697","Radis Community Care","0309201720170912","35.30","TPP - Home Care","190372698","13/09/2017","Older People Care Purchasing","OP Care Purchasing (Spot Placements)","R5420"
"Wolverhampton City Council","http://opendatacommunities.org/id/metropolitan-district-council/wolverhampton","706697","Radis Community Care","0309201720170912","437.72","TPP - Home Care","190372698","13/09/2017","Older People Care Purchasing","OP Care Purchasing (Spot Placements)","R5420"
"Wolverhampton City Council","http://opendatacommunities.org/id/metropolitan-district-council/wolverhampton","706697","Radis Community Care","0309201720170912","504.79","TPP - Home Care","190372698","13/09/2017","Older People Care Purchasing","OP Care Purchasing (Spot Placements)","R5420"
"Wolverhampton City Council","http://opendatacommunities.org/id/metropolitan-district-council/wolverhampton","706697","Radis Community Care","0309201720170912","77.66","TPP - Home Care","190372698","13/09/2017","Older People Care Purchasing","OP Care Purchasing (Spot Placements)","R5420"
"Wolverhampton City Council","http://opendatacommunities.org/id/metropolitan-district-council/wolverhampton","706697","Radis Community Care","0309201720170912","222.39","TPP - Home Care","190372698","13/09/2017","Older People Care Purchasing","OP Care Purchasing (Spot Placements)","R5420"
"Wolverhampton City Council","http://opendatacommunities.org/id/metropolitan-district-council/wolverhampton","706697","Radis Community Care","0309201720170912","148.26","TPP - Home Care","190372698","13/09/2017","Older People Care Purchasing","OP Care Purchasing (Spot Placements)","R5420"
"Wolverhampton City Council","http://opendatacommunities.org/id/metropolitan-district-council/wolverhampton","706697","Radis Community Care","0309201720170912","52.95","TPP - Home Care","190372698","13/09/2017","Older People Care Purchasing","OP Care Purchasing (Spot Placements)","R5420"
"Wolverhampton City Council","http://opendatacommunities.org/id/metropolitan-district-council/wolverhampton","706697","Radis Community Care","0309201720170912","14.12","TPP - Home Care","190372698","13/09/2017","Older People Care Purchasing","OP Care Purchasing (Spot Placements)","R5420"
"Wolverhampton City Council","http://opendatacommunities.org/id/metropolitan-district-council/wolverhampton","706697","Radis Community Care","0309201720170912","127.08","TPP - Home Care","190372698","13/09/2017","Older People Care Purchasing","OP Care Purchasing (Spot Placements)","R5420"
"Wolverhampton City Council","http://opendatacommunities.org/id/metropolitan-district-council/wolverhampton","706697","Radis Community Care","0309201720170912","98.84","TPP - Home Care","190372698","13/09/2017","Older People Care Purchasing","OP Care Purchasing (Spot Placements)","R5420"
"Wolverhampton City Council","http://opendatacommunities.org/id/metropolitan-district-council/wolverhampton","706697","Radis Community Care","0309201720170912","98.84","TPP - Home Care","190372698","13/09/2017","Older People Care Purchasing","OP Care Purchasing (Spot Placements)","R5420"
"Wolverhampton City Council","http://opendatacommunities.org/id/metropolitan-district-council/wolverhampton","706697","Radis Community Care","0309201720170912","102.37","TPP - Home Care","190372698","13/09/2017","Older People Care Purchasing","OP Care Purchasing (Spot Placements)","R5420"
"Wolverhampton City Council","http://opendatacommunities.org/id/metropolitan-district-council/wolverhampton","706697","Radis Community Care","0309201720170912","282.40","TPP - Home Care","190372698","13/09/2017","Older People Care Purchasing","OP Care Purchasing (Spot Placements)","R5420"
"Wolverhampton City Council","http://opendatacommunities.org/id/metropolitan-district-council/wolverhampton","706697","Radis Community Care","0309201720170912","197.68","TPP - Home Care","190372698","13/09/2017","Older People Care Purchasing","OP Care Purchasing (Spot Placements)","R5420"
"Wolverhampton City Council","http://opendatacommunities.org/id/metropolitan-district-council/wolverhampton","706697","Radis Community Care","0309201720170912","109.43","TPP - Home Care","190372698","13/09/2017","Older People Care Purchasing","OP Care Purchasing (Spot Placements)","R5420"
"Wolverhampton City Council","http://opendatacommunities.org/id/metropolitan-district-council/wolverhampton","706697","Radis Community Care","0309201720170912","95.31","TPP - Home Care","190372698","13/09/2017","Older People Care Purchasing","OP Care Purchasing (Spot Placements)","R5420"
"Wolverhampton City Council","http://opendatacommunities.org/id/metropolitan-district-council/wolverhampton","706697","Radis Community Care","0309201720170912","197.68","TPP - Home Care","190372698","13/09/2017","Older People Care Purchasing","OP Care Purchasing (Spot Placements)","R5420"
"Wolverhampton City Council","http://opendatacommunities.org/id/metropolitan-district-council/wolverhampton","706697","Radis Community Care","0309201720170912","211.80","TPP - Home Care","190372698","13/09/2017","Older People Care Purchasing","OP Care Purchasing (Spot Placements)","R5420"
"Wolverhampton City Council","http://opendatacommunities.org/id/metropolitan-district-council/wolverhampton","706697","Radis Community Care","0309201720170912","49.42","TPP - Home Care","190372698","13/09/2017","Older People Care Purchasing","OP Care Purchasing (Spot Placements)","R5420"
"Wolverhampton City Council","http://opendatacommunities.org/id/metropolitan-district-council/wolverhampton","706697","Radis Community Care","0309201720170912","98.84","TPP - Home Care","190372698","13/09/2017","Older People Care Purchasing","OP Care Purchasing (Spot Placements)","R5420"
"Wolverhampton City Council","http://opendatacommunities.org/id/metropolitan-district-council/wolverhampton","706697","Radis Community Care","0309201720170912","169.44","TPP - Home Care","190372698","13/09/2017","Older People Care Purchasing","OP Care Purchasing (Spot Placements)","R5420"
"Wolverhampton City Council","http://opendatacommunities.org/id/metropolitan-district-council/wolverhampton","706697","Radis Community Care","0309201720170912","49.42","TPP - Home Care","190372698","13/09/2017","Older People Care Purchasing","OP Care Purchasing (Spot Placements)","R5420"
"Wolverhampton City Council","http://opendatacommunities.org/id/metropolitan-district-council/wolverhampton","706697","Radis Community Care","0309201720170912","38.83","TPP - Home Care","190372698","13/09/2017","Older People Care Purchasing","OP Care Purchasing (Spot Placements)","R5420"
"Wolverhampton City Council","http://opendatacommunities.org/id/metropolitan-district-council/wolverhampton","706697","Radis Community Care","0309201720170912","49.42","TPP - Home Care","190372698","13/09/2017","Older People Care Purchasing","OP Care Purchasing (Spot Placements)","R5420"
"Wolverhampton City Council","http://opendatacommunities.org/id/metropolitan-district-council/wolverhampton","706697","Radis Community Care","0309201720170912","74.13","TPP - Home Care","190372698","13/09/2017","Older People Care Purchasing","OP Care Purchasing (Spot Placements)","R5420"
"Wolverhampton City Council","http://opendatacommunities.org/id/metropolitan-district-council/wolverhampton","706697","Radis Community Care","0309201720170912","67.07","TPP - Home Care","190372698","13/09/2017","Older People Care Purchasing","OP Care Purchasing (Spot Placements)","R5420"
